Workbook

Sheet f2
A1: =MAX(A5:A493) -> 4
A2: الرقم | B2: الاسم | C2: الرقم المالي | D2: الرقم الوطني | E2: الصفة | F2: الوظيفة | G2: عدد الحصص الفعلية في الاسبوع | L2: عدد حصص الاحتياط | Q2: عدد حصص الغياب | V2: تاريخ البداية | W2: تاريخ النهاية | X2: عدد أيام العمل | Y2: عدد الأسابيع | Z2: مجموع الحصص في الاسبوع | AA2: مجموع حصص الفصل | AB2: القيمة في الاسبوع | AC2: القيمة الاجمالية | AD2: مجموع الحصص الاضافة | AE2: مجموع القيمة الاضافية | AF2: مجموع الغياب | AG2: قيمة الغياب | AH2: صافي الحصص | AI2: صافي القيمة
G3: فئة 6 | H3: فئة 8 | I3: فئة 12 | J3: فئة 10 | K3: فئة 15 | L3: فئة 6 | M3: فئة 8 | N3: فئة 12 | O3: فئة 10 | P3: فئة 15 | Q3: فئة 6 | R3: فئة 8 | S3: فئة 12 | T3: فئة 10 | U3: فئة 15
A4: =IF(B4<>"",SUBTOTAL(3,$B$4:B4),"") -> 1 | B4: معلم 1 | C4: 70031 | D4: 119680358416 | E4: قار | F4: معلم بجدول | K4: 15 | P4: 0 | U4: 9 | V4: 2018-10-10 | W4: 2019-01-24 | X4: =NETWORKDAYS.INTL(V4,W4,7,$AM$4:$AM$4) -> 77 | Y4: =X4/5 -> 15.4 | Z4: =SUM(G4:K4) -> 15 | AA4: =Z4*Y4 -> 231 | AB4: =SUM((G4*6)+(H4*8)+(I4*12)+(J4*10)+(K4*15)) -> 225 | AC4: =AB4*Y4 -> 3465 | AD4: =SUM(L4:P4) -> 0 | AE4: =SUM((L4*6)+(M4*8)+(N4*12)+(O4*10)+(P4*15)) -> 0 | AF4: =SUM(Q4:U4) -> 9 | AG4: =SUM((Q4*6)+(R4*8)+(S4*12)+(T4*10)+(U4*15)) -> 135 | AH4: =AA4+AD4-AF4 -> 222 | AI4: =IF(X4>81,"عدل التاريخ",AC4+AE4-AG4) -> 3330
A5: 2 | B5: معلم 2 | C5: 70042 | D5: 119680358416 | E5: قار | F5: معلم بجدول | G5: 2 | H5: 4 | I5: 6 | J5: 8 | K5: 10 | V5: 2018-10-10 | W5: 2019-01-24 | X5: =NETWORKDAYS.INTL(V5,W5,7,$AM$4:$AM$4) -> 77 | Y5: =X5/5 -> 15.4 | Z5: =SUM(G5:K5) -> 30 | AA5: =Z5*Y5 -> 462 | AB5: =SUM((G5*6)+(H5*8)+(I5*12)+(J5*10)+(K5*15)) -> 346 | AC5: =AB5*Y5 -> 5328.4 | AD5: =SUM(L5:P5) -> 0 | AE5: =SUM((L5*6)+(M5*8)+(N5*12)+(O5*10)+(P5*15)) -> 0 | AF5: =SUM(Q5:U5) -> 0 | AG5: =SUM((Q5*6)+(R5*8)+(S5*12)+(T5*10)+(U5*15)) -> 0 | AH5: =AA5+AD5-AF5 -> 462 | AI5: =IF(X5>81,"عدل التاريخ",AC5+AE5-AG5) -> 5328.4
A6: 3 | B6: معلم 3 | C6: 70052 | D6: 119680358416 | E6: قار | F6: معلم بجدول | G6: 2 | H6: 4 | I6: 5 | J6: 6 | K6: 10 | L6: 12 | M6: 14 | N6: 15 | O6: 18 | P6: 20 | Q6: 22 | R6: 24 | S6: 26 | T6: 28 | U6: 30 | V6: 2018-10-09 | W6: 2019-01-24 | X6: =NETWORKDAYS.INTL(V6,W6,7,$AM$4:$AM$4) -> 78 | Y6: 15.6 | Z6: 27 | AA6: 421.2 | AB6: 314 | AC6: 4898.4 | AD6: 79 | AE6: 844 | AF6: 130 | AG6: 1366 | AH6: 370.2 | AI6: 4376.4
A7: 4 | B7: معلم 4 | C7: 7010 | D7: 119730358416 | E7: قار | F7: معلم ثانوي | G7: 2 | H7: 4 | I7: 6 | J7: 8 | K7: 10 | L7: 12 | M7: 14 | N7: 16 | O7: 18 | P7: 20 | Q7: 22 | R7: 24 | S7: 26 | T7: 28 | U7: 30 | V7: 2018-10-14 | W7: 2019-01-24 | X7: 75 | Y7: 15 | Z7: 30 | AA7: 450 | AB7: 346 | AC7: 5190 | AD7: 80 | AE7: 856 | AF7: 130 | AG7: 1366 | AH7: 400 | AI7: 4680
E8: قار | X8: 0 | Y8: 0 | Z8: 0 | AA8: 0 | AB8: 0 | AC8: 0 | AD8: 0 | AE8: 0 | AF8: 0 | AG8: 0 | AH8: 0 | AI8: 0
X9: 0 | Y9: 0 | Z9: 0 | AA9: 0 | AB9: 0 | AC9: 0 | AD9: 0 | AE9: 0 | AF9: 0 | AG9: 0 | AH9: 0 | AI9: 0
X10: 0 | Y10: 0 | Z10: 0 | AA10: 0 | AB10: 0 | AC10: 0 | AD10: 0 | AE10: 0 | AF10: 0 | AG10: 0 | AH10: 0 | AI10: 0
X11: 0 | Y11: 0 | Z11: 0 | AA11: 0 | AB11: 0 | AC11: 0 | AD11: 0 | AE11: 0 | AF11: 0 | AG11: 0 | AH11: 0 | AI11: 0
X12: 0 | Y12: 0 | Z12: 0 | AA12: 0 | AB12: 0 | AC12: 0 | AD12: 0 | AE12: 0 | AF12: 0 | AG12: 0 | AH12: 0 | AI12: 0
X13: 0 | Y13: 0 | Z13: 0 | AA13: 0 | AB13: 0 | AC13: 0 | AD13: 0 | AE13: 0 | AF13: 0 | AG13: 0 | AH13: 0 | AI13: 0
X14: 0 | Y14: 0 | Z14: 0 | AA14: 0 | AB14: 0 | AC14: 0 | AD14: 0 | AE14: 0 | AF14: 0 | AG14: 0 | AH14: 0 | AI14: 0
X15: 0 | Y15: 0 | Z15: 0 | AA15: 0 | AB15: 0 | AC15: 0 | AD15: 0 | AE15: 0 | AF15: 0 | AG15: 0 | AH15: 0 | AI15: 0
X16: 0 | Y16: 0 | Z16: 0 | AA16: 0 | AB16: 0 | AC16: 0 | AD16: 0 | AE16: 0 | AF16: 0 | AG16: 0 | AH16: 0 | AI16: 0
X17: 0 | Y17: 0 | Z17: 0 | AA17: 0 | AB17: 0 | AC17: 0 | AD17: 0 | AE17: 0 | AF17: 0 | AG17: 0 | AH17: 0 | AI17: 0
X18: 0 | Y18: 0 | Z18: 0 | AA18: 0 | AB18: 0 | AC18: 0 | AD18: 0 | AE18: 0 | AF18: 0 | AG18: 0 | AH18: 0 | AI18: 0
X19: 0 | Y19: 0 | Z19: 0 | AA19: 0 | AB19: 0 | AC19: 0 | AD19: 0 | AE19: 0 | AF19: 0 | AG19: 0 | AH19: 0 | AI19: 0
X20: 0 | Y20: 0 | Z20: 0 | AA20: 0 | AB20: 0 | AC20: 0 | AD20: 0 | AE20: 0 | AF20: 0 | AG20: 0 | AH20: 0 | AI20: 0
X21: 0 | Y21: 0 | Z21: 0 | AA21: 0 | AB21: 0 | AC21: 0 | AD21: 0 | AE21: 0 | AF21: 0 | AG21: 0 | AH21: 0 | AI21: 0
X22: 0 | Y22: 0 | Z22: 0 | AA22: 0 | AB22: 0 | AC22: 0 | AD22: 0 | AE22: 0 | AF22: 0 | AG22: 0 | AH22: 0 | AI22: 0
X23: 0 | Y23: 0 | Z23: 0 | AA23: 0 | AB23: 0 | AC23: 0 | AD23: 0 | AE23: 0 | AF23: 0 | AG23: 0 | AH23: 0 | AI23: 0
X24: 0 | Y24: 0 | Z24: 0 | AA24: 0 | AB24: 0 | AC24: 0 | AD24: 0 | AE24: 0 | AF24: 0 | AG24: 0 | AH24: 0 | AI24: 0
X25: 0 | Y25: 0 | Z25: 0 | AA25: 0 | AB25: 0 | AC25: 0 | AD25: 0 | AE25: 0 | AF25: 0 | AG25: 0 | AH25: 0 | AI25: 0
X26: 0 | Y26: 0 | Z26: 0 | AA26: 0 | AB26: 0 | AC26: 0 | AD26: 0 | AE26: 0 | AF26: 0 | AG26: 0 | AH26: 0 | AI26: 0
X27: 0 | Y27: 0 | Z27: 0 | AA27: 0 | AB27: 0 | AC27: 0 | AD27: 0 | AE27: 0 | AF27: 0 | AG27: 0 | AH27: 0 | AI27: 0
X28: 0 | Y28: 0 | Z28: 0 | AA28: 0 | AB28: 0 | AC28: 0 | AD28: 0 | AE28: 0 | AF28: 0 | AG28: 0 | AH28: 0 | AI28: 0
X29: 0 | Y29: 0 | Z29: 0 | AA29: 0 | AB29: 0 | AC29: 0 | AD29: 0 | AE29: 0 | AF29: 0 | AG29: 0 | AH29: 0 | AI29: 0
X30: 0 | Y30: 0 | Z30: 0 | AA30: 0 | AB30: 0 | AC30: 0 | AD30: 0 | AE30: 0 | AF30: 0 | AG30: 0 | AH30: 0 | AI30: 0
X31: 0 | Y31: 0 | Z31: 0 | AA31: 0 | AB31: 0 | AC31: 0 | AD31: 0 | AE31: 0 | AF31: 0 | AG31: 0 | AH31: 0 | AI31: 0
X32: 0 | Y32: 0 | Z32: 0 | AA32: 0 | AB32: 0 | AC32: 0 | AD32: 0 | AE32: 0 | AF32: 0 | AG32: 0 | AH32: 0 | AI32: 0
X33: 0 | Y33: 0 | Z33: 0 | AA33: 0 | AB33: 0 | AC33: 0 | AD33: 0 | AE33: 0 | AF33: 0 | AG33: 0 | AH33: 0 | AI33: 0
X34: 0 | Y34: 0 | Z34: 0 | AA34: 0 | AB34: 0 | AC34: 0 | AD34: 0 | AE34: 0 | AF34: 0 | AG34: 0 | AH34: 0 | AI34: 0
X35: 0 | Y35: 0 | Z35: 0 | AA35: 0 | AB35: 0 | AC35: 0 | AD35: 0 | AE35: 0 | AF35: 0 | AG35: 0 | AH35: 0 | AI35: 0
X36: 0 | Y36: 0 | Z36: 0 | AA36: 0 | AB36: 0 | AC36: 0 | AD36: 0 | AE36: 0 | AF36: 0 | AG36: 0 | AH36: 0 | AI36: 0
X37: 0 | Y37: 0 | Z37: 0 | AA37: 0 | AB37: 0 | AC37: 0 | AD37: 0 | AE37: 0 | AF37: 0 | AG37: 0 | AH37: 0 | AI37: 0
X38: 0 | Y38: 0 | Z38: 0 | AA38: 0 | AB38: 0 | AC38: 0 | AD38: 0 | AE38: 0 | AF38: 0 | AG38: 0 | AH38: 0 | AI38: 0
X39: 0 | Y39: 0 | Z39: 0 | AA39: 0 | AB39: 0 | AC39: 0 | AD39: 0 | AE39: 0 | AF39: 0 | AG39: 0 | AH39: 0 | AI39: 0
X40: 0 | Y40: 0 | Z40: 0 | AA40: 0 | AB40: 0 | AC40: 0 | AD40: 0 | AE40: 0 | AF40: 0 | AG40: 0 | AH40: 0 | AI40: 0
X41: 0 | Y41: 0 | Z41: 0 | AA41: 0 | AB41: 0 | AC41: 0 | AD41: 0 | AE41: 0 | AF41: 0 | AG41: 0 | AH41: 0 | AI41: 0
X42: 0 | Y42: 0 | Z42: 0 | AA42: 0 | AB42: 0 | AC42: 0 | AD42: 0 | AE42: 0 | AF42: 0 | AG42: 0 | AH42: 0 | AI42: 0
X43: 0 | Y43: 0 | Z43: 0 | AA43: 0 | AB43: 0 | AC43: 0 | AD43: 0 | AE43: 0 | AF43: 0 | AG43: 0 | AH43: 0 | AI43: 0
X44: 0 | Y44: 0 | Z44: 0 | AA44: 0 | AB44: 0 | AC44: 0 | AD44: 0 | AE44: 0 | AF44: 0 | AG44: 0 | AH44: 0 | AI44: 0
X45: 0 | Y45: 0 | Z45: 0 | AA45: 0 | AB45: 0 | AC45: 0 | AD45: 0 | AE45: 0 | AF45: 0 | AG45: 0 | AH45: 0 | AI45: 0
X46: 0 | Y46: 0 | Z46: 0 | AA46: 0 | AB46: 0 | AC46: 0 | AD46: 0 | AE46: 0 | AF46: 0 | AG46: 0 | AH46: 0 | AI46: 0
X47: 0 | Y47: 0 | Z47: 0 | AA47: 0 | AB47: 0 | AC47: 0 | AD47: 0 | AE47: 0 | AF47: 0 | AG47: 0 | AH47: 0 | AI47: 0
X48: 0 | Y48: 0 | Z48: 0 | AA48: 0 | AB48: 0 | AC48: 0 | AD48: 0 | AE48: 0 | AF48: 0 | AG48: 0 | AH48: 0 | AI48: 0
X49: 0 | Y49: 0 | Z49: 0 | AA49: 0 | AB49: 0 | AC49: 0 | AD49: 0 | AE49: 0 | AF49: 0 | AG49: 0 | AH49: 0 | AI49: 0
X50: 0 | Y50: 0 | Z50: 0 | AA50: 0 | AB50: 0 | AC50: 0 | AD50: 0 | AE50: 0 | AF50: 0 | AG50: 0 | AH50: 0 | AI50: 0
X51: 0 | Y51: 0 | Z51: 0 | AA51: 0 | AB51: 0 | AC51: 0 | AD51: 0 | AE51: 0 | AF51: 0 | AG51: 0 | AH51: 0 | AI51: 0
X52: 0 | Y52: 0 | Z52: 0 | AA52: 0 | AB52: 0 | AC52: 0 | AD52: 0 | AE52: 0 | AF52: 0 | AG52: 0 | AH52: 0 | AI52: 0
X53: 0 | Y53: 0 | Z53: 0 | AA53: 0 | AB53: 0 | AC53: 0 | AD53: 0 | AE53: 0 | AF53: 0 | AG53: 0 | AH53: 0 | AI53: 0
X54: 0 | Y54: 0 | Z54: 0 | AA54: 0 | AB54: 0 | AC54: 0 | AD54: 0 | AE54: 0 | AF54: 0 | AG54: 0 | AH54: 0 | AI54: 0
X55: 0 | Y55: 0 | Z55: 0 | AA55: 0 | AB55: 0 | AC55: 0 | AD55: 0 | AE55: 0 | AF55: 0 | AG55: 0 | AH55: 0 | AI55: 0
X56: 0 | Y56: 0 | Z56: 0 | AA56: 0 | AB56: 0 | AC56: 0 | AD56: 0 | AE56: 0 | AF56: 0 | AG56: 0 | AH56: 0 | AI56: 0
X57: 0 | Y57: 0 | Z57: 0 | AA57: 0 | AB57: 0 | AC57: 0 | AD57: 0 | AE57: 0 | AF57: 0 | AG57: 0 | AH57: 0 | AI57: 0
X58: 0 | Y58: 0 | Z58: 0 | AA58: 0 | AB58: 0 | AC58: 0 | AD58: 0 | AE58: 0 | AF58: 0 | AG58: 0 | AH58: 0 | AI58: 0
X59: 0 | Y59: 0 | Z59: 0 | AA59: 0 | AB59: 0 | AC59: 0 | AD59: 0 | AE59: 0 | AF59: 0 | AG59: 0 | AH59: 0 | AI59: 0
X60: 0 | Y60: 0 | Z60: 0 | AA60: 0 | AB60: 0 | AC60: 0 | AD60: 0 | AE60: 0 | AF60: 0 | AG60: 0 | AH60: 0 | AI60: 0
X61: 0 | Y61: 0 | Z61: 0 | AA61: 0 | AB61: 0 | AC61: 0 | AD61: 0 | AE61: 0 | AF61: 0 | AG61: 0 | AH61: 0 | AI61: 0
X62: 0 | Y62: 0 | Z62: 0 | AA62: 0 | AB62: 0 | AC62: 0 | AD62: 0 | AE62: 0 | AF62: 0 | AG62: 0 | AH62: 0 | AI62: 0
X63: 0 | Y63: 0 | Z63: 0 | AA63: 0 | AB63: 0 | AC63: 0 | AD63: 0 | AE63: 0 | AF63: 0 | AG63: 0 | AH63: 0 | AI63: 0
X64: 0 | Y64: 0 | Z64: 0 | AA64: 0 | AB64: 0 | AC64: 0 | AD64: 0 | AE64: 0 | AF64: 0 | AG64: 0 | AH64: 0 | AI64: 0
X65: 0 | Y65: 0 | Z65: 0 | AA65: 0 | AB65: 0 | AC65: 0 | AD65: 0 | AE65: 0 | AF65: 0 | AG65: 0 | AH65: 0 | AI65: 0
X66: 0 | Y66: 0 | Z66: 0 | AA66: 0 | AB66: 0 | AC66: 0 | AD66: 0 | AE66: 0 | AF66: 0 | AG66: 0 | AH66: 0 | AI66: 0
X67: 0 | Y67: 0 | Z67: 0 | AA67: 0 | AB67: 0 | AC67: 0 | AD67: 0 | AE67: 0 | AF67: 0 | AG67: 0 | AH67: 0 | AI67: 0
X68: 0 | Y68: 0 | Z68: 0 | AA68: 0 | AB68: 0 | AC68: 0 | AD68: 0 | AE68: 0 | AF68: 0 | AG68: 0 | AH68: 0 | AI68: 0
X69: =NETWORKDAYS.INTL(V69,W69,7,$AM$4:$AM$4) -> 0 | Y69: =X69/5 -> 0 | Z69: =SUM(G69:K69) -> 0 | AA69: =Z69*Y69 -> 0 | AB69: =SUM((G69*6)+(H69*8)+(I69*12)+(J69*10)+(K69*15)) -> 0 | AC69: =AB69*Y69 -> 0 | AD69: =SUM(L69:P69) -> 0 | AE69: =SUM((L69*6)+(M69*8)+(N69*12)+(O69*10)+(P69*15)) -> 0 | AF69: =SUM(Q69:U69) -> 0 | AG69: =SUM((Q69*6)+(R69*8)+(S69*12)+(T69*10)+(U69*15)) -> 0 | AH69: =AA69+AD69-AF69 -> 0 | AI69: =IF(X69>81,"عدل التاريخ",AC69+AE69-AG69) -> 0
X70: 0 | Y70: 0 | Z70: 0 | AA70: 0 | AB70: 0 | AC70: 0 | AD70: 0 | AE70: 0 | AF70: 0 | AG70: 0 | AH70: 0 | AI70: 0
X71: 0 | Y71: 0 | Z71: 0 | AA71: 0 | AB71: 0 | AC71: 0 | AD71: 0 | AE71: 0 | AF71: 0 | AG71: 0 | AH71: 0 | AI71: 0
X72: 0 | Y72: 0 | Z72: 0 | AA72: 0 | AB72: 0 | AC72: 0 | AD72: 0 | AE72: 0 | AF72: 0 | AG72: 0 | AH72: 0 | AI72: 0
X73: 0 | Y73: 0 | Z73: 0 | AA73: 0 | AB73: 0 | AC73: 0 | AD73: 0 | AE73: 0 | AF73: 0 | AG73: 0 | AH73: 0 | AI73: 0
X74: 0 | Y74: 0 | Z74: 0 | AA74: 0 | AB74: 0 | AC74: 0 | AD74: 0 | AE74: 0 | AF74: 0 | AG74: 0 | AH74: 0 | AI74: 0
X75: 0 | Y75: 0 | Z75: 0 | AA75: 0 | AB75: 0 | AC75: 0 | AD75: 0 | AE75: 0 | AF75: 0 | AG75: 0 | AH75: 0 | AI75: 0
X76: 0 | Y76: 0 | Z76: 0 | AA76: 0 | AB76: 0 | AC76: 0 | AD76: 0 | AE76: 0 | AF76: 0 | AG76: 0 | AH76: 0 | AI76: 0
X77: 0 | Y77: 0 | Z77: 0 | AA77: 0 | AB77: 0 | AC77: 0 | AD77: 0 | AE77: 0 | AF77: 0 | AG77: 0 | AH77: 0 | AI77: 0
X78: 0 | Y78: 0 | Z78: 0 | AA78: 0 | AB78: 0 | AC78: 0 | AD78: 0 | AE78: 0 | AF78: 0 | AG78: 0 | AH78: 0 | AI78: 0
X79: 0 | Y79: 0 | Z79: 0 | AA79: 0 | AB79: 0 | AC79: 0 | AD79: 0 | AE79: 0 | AF79: 0 | AG79: 0 | AH79: 0 | AI79: 0
X80: 0 | Y80: 0 | Z80: 0 | AA80: 0 | AB80: 0 | AC80: 0 | AD80: 0 | AE80: 0 | AF80: 0 | AG80: 0 | AH80: 0 | AI80: 0
X81: 0 | Y81: 0 | Z81: 0 | AA81: 0 | AB81: 0 | AC81: 0 | AD81: 0 | AE81: 0 | AF81: 0 | AG81: 0 | AH81: 0 | AI81: 0
X82: 0 | Y82: 0 | Z82: 0 | AA82: 0 | AB82: 0 | AC82: 0 | AD82: 0 | AE82: 0 | AF82: 0 | AG82: 0 | AH82: 0 | AI82: 0
X83: 0 | Y83: 0 | Z83: 0 | AA83: 0 | AB83: 0 | AC83: 0 | AD83: 0 | AE83: 0 | AF83: 0 | AG83: 0 | AH83: 0 | AI83: 0
X84: 0 | Y84: 0 | Z84: 0 | AA84: 0 | AB84: 0 | AC84: 0 | AD84: 0 | AE84: 0 | AF84: 0 | AG84: 0 | AH84: 0 | AI84: 0
X85: 0 | Y85: 0 | Z85: 0 | AA85: 0 | AB85: 0 | AC85: 0 | AD85: 0 | AE85: 0 | AF85: 0 | AG85: 0 | AH85: 0 | AI85: 0
X86: 0 | Y86: 0 | Z86: 0 | AA86: 0 | AB86: 0 | AC86: 0 | AD86: 0 | AE86: 0 | AF86: 0 | AG86: 0 | AH86: 0 | AI86: 0
X87: 0 | Y87: 0 | Z87: 0 | AA87: 0 | AB87: 0 | AC87: 0 | AD87: 0 | AE87: 0 | AF87: 0 | AG87: 0 | AH87: 0 | AI87: 0
X88: 0 | Y88: 0 | Z88: 0 | AA88: 0 | AB88: 0 | AC88: 0 | AD88: 0 | AE88: 0 | AF88: 0 | AG88: 0 | AH88: 0 | AI88: 0
X89: 0 | Y89: 0 | Z89: 0 | AA89: 0 | AB89: 0 | AC89: 0 | AD89: 0 | AE89: 0 | AF89: 0 | AG89: 0 | AH89: 0 | AI89: 0
X90: 0 | Y90: 0 | Z90: 0 | AA90: 0 | AB90: 0 | AC90: 0 | AD90: 0 | AE90: 0 | AF90: 0 | AG90: 0 | AH90: 0 | AI90: 0
X91: 0 | Y91: 0 | Z91: 0 | AA91: 0 | AB91: 0 | AC91: 0 | AD91: 0 | AE91: 0 | AF91: 0 | AG91: 0 | AH91: 0 | AI91: 0
X92: 0 | Y92: 0 | Z92: 0 | AA92: 0 | AB92: 0 | AC92: 0 | AD92: 0 | AE92: 0 | AF92: 0 | AG92: 0 | AH92: 0 | AI92: 0
X93: 0 | Y93: 0 | Z93: 0 | AA93: 0 | AB93: 0 | AC93: 0 | AD93: 0 | AE93: 0 | AF93: 0 | AG93: 0 | AH93: 0 | AI93: 0
X94: 0 | Y94: 0 | Z94: 0 | AA94: 0 | AB94: 0 | AC94: 0 | AD94: 0 | AE94: 0 | AF94: 0 | AG94: 0 | AH94: 0 | AI94: 0
X95: 0 | Y95: 0 | Z95: 0 | AA95: 0 | AB95: 0 | AC95: 0 | AD95: 0 | AE95: 0 | AF95: 0 | AG95: 0 | AH95: 0 | AI95: 0
X96: 0 | Y96: 0 | Z96: 0 | AA96: 0 | AB96: 0 | AC96: 0 | AD96: 0 | AE96: 0 | AF96: 0 | AG96: 0 | AH96: 0 | AI96: 0
X97: 0 | Y97: 0 | Z97: 0 | AA97: 0 | AB97: 0 | AC97: 0 | AD97: 0 | AE97: 0 | AF97: 0 | AG97: 0 | AH97: 0 | AI97: 0
X98: 0 | Y98: 0 | Z98: 0 | AA98: 0 | AB98: 0 | AC98: 0 | AD98: 0 | AE98: 0 | AF98: 0 | AG98: 0 | AH98: 0 | AI98: 0
X99: 0 | Y99: 0 | Z99: 0 | AA99: 0 | AB99: 0 | AC99: 0 | AD99: 0 | AE99: 0 | AF99: 0 | AG99: 0 | AH99: 0 | AI99: 0
X100: 0 | Y100: 0 | Z100: 0 | AA100: 0 | AB100: 0 | AC100: 0 | AD100: 0 | AE100: 0 | AF100: 0 | AG100: 0 | AH100: 0 | AI100: 0
X101: 0 | Y101: 0 | Z101: 0 | AA101: 0 | AB101: 0 | AC101: 0 | AD101: 0 | AE101: 0 | AF101: 0 | AG101: 0 | AH101: 0 | AI101: 0
X102: 0 | Y102: 0 | Z102: 0 | AA102: 0 | AB102: 0 | AC102: 0 | AD102: 0 | AE102: 0 | AF102: 0 | AG102: 0 | AH102: 0 | AI102: 0
X103: 0 | Y103: 0 | Z103: 0 | AA103: 0 | AB103: 0 | AC103: 0 | AD103: 0 | AE103: 0 | AF103: 0 | AG103: 0 | AH103: 0 | AI103: 0
X104: 0 | Y104: 0 | Z104: 0 | AA104: 0 | AB104: 0 | AC104: 0 | AD104: 0 | AE104: 0 | AF104: 0 | AG104: 0 | AH104: 0 | AI104: 0
X105: 0 | Y105: 0 | Z105: 0 | AA105: 0 | AB105: 0 | AC105: 0 | AD105: 0 | AE105: 0 | AF105: 0 | AG105: 0 | AH105: 0 | AI105: 0
X106: 0 | Y106: 0 | Z106: 0 | AA106: 0 | AB106: 0 | AC106: 0 | AD106: 0 | AE106: 0 | AF106: 0 | AG106: 0 | AH106: 0 | AI106: 0
X107: 0 | Y107: 0 | Z107: 0 | AA107: 0 | AB107: 0 | AC107: 0 | AD107: 0 | AE107: 0 | AF107: 0 | AG107: 0 | AH107: 0 | AI107: 0
X108: 0 | Y108: 0 | Z108: 0 | AA108: 0 | AB108: 0 | AC108: 0 | AD108: 0 | AE108: 0 | AF108: 0 | AG108: 0 | AH108: 0 | AI108: 0
X109: 0 | Y109: 0 | Z109: 0 | AA109: 0 | AB109: 0 | AC109: 0 | AD109: 0 | AE109: 0 | AF109: 0 | AG109: 0 | AH109: 0 | AI109: 0
X110: 0 | Y110: 0 | Z110: 0 | AA110: 0 | AB110: 0 | AC110: 0 | AD110: 0 | AE110: 0 | AF110: 0 | AG110: 0 | AH110: 0 | AI110: 0
X111: 0 | Y111: 0 | Z111: 0 | AA111: 0 | AB111: 0 | AC111: 0 | AD111: 0 | AE111: 0 | AF111: 0 | AG111: 0 | AH111: 0 | AI111: 0
X112: 0 | Y112: 0 | Z112: 0 | AA112: 0 | AB112: 0 | AC112: 0 | AD112: 0 | AE112: 0 | AF112: 0 | AG112: 0 | AH112: 0 | AI112: 0
X113: 0 | Y113: 0 | Z113: 0 | AA113: 0 | AB113: 0 | AC113: 0 | AD113: 0 | AE113: 0 | AF113: 0 | AG113: 0 | AH113: 0 | AI113: 0
X114: 0 | Y114: 0 | Z114: 0 | AA114: 0 | AB114: 0 | AC114: 0 | AD114: 0 | AE114: 0 | AF114: 0 | AG114: 0 | AH114: 0 | AI114: 0
X115: 0 | Y115: 0 | Z115: 0 | AA115: 0 | AB115: 0 | AC115: 0 | AD115: 0 | AE115: 0 | AF115: 0 | AG115: 0 | AH115: 0 | AI115: 0
X116: 0 | Y116: 0 | Z116: 0 | AA116: 0 | AB116: 0 | AC116: 0 | AD116: 0 | AE116: 0 | AF116: 0 | AG116: 0 | AH116: 0 | AI116: 0
X117: 0 | Y117: 0 | Z117: 0 | AA117: 0 | AB117: 0 | AC117: 0 | AD117: 0 | AE117: 0 | AF117: 0 | AG117: 0 | AH117: 0 | AI117: 0
X118: 0 | Y118: 0 | Z118: 0 | AA118: 0 | AB118: 0 | AC118: 0 | AD118: 0 | AE118: 0 | AF118: 0 | AG118: 0 | AH118: 0 | AI118: 0
X119: 0 | Y119: 0 | Z119: 0 | AA119: 0 | AB119: 0 | AC119: 0 | AD119: 0 | AE119: 0 | AF119: 0 | AG119: 0 | AH119: 0 | AI119: 0
X120: 0 | Y120: 0 | Z120: 0 | AA120: 0 | AB120: 0 | AC120: 0 | AD120: 0 | AE120: 0 | AF120: 0 | AG120: 0 | AH120: 0 | AI120: 0
X121: 0 | Y121: 0 | Z121: 0 | AA121: 0 | AB121: 0 | AC121: 0 | AD121: 0 | AE121: 0 | AF121: 0 | AG121: 0 | AH121: 0 | AI121: 0
X122: 0 | Y122: 0 | Z122: 0 | AA122: 0 | AB122: 0 | AC122: 0 | AD122: 0 | AE122: 0 | AF122: 0 | AG122: 0 | AH122: 0 | AI122: 0
X123: 0 | Y123: 0 | Z123: 0 | AA123: 0 | AB123: 0 | AC123: 0 | AD123: 0 | AE123: 0 | AF123: 0 | AG123: 0 | AH123: 0 | AI123: 0
X124: 0 | Y124: 0 | Z124: 0 | AA124: 0 | AB124: 0 | AC124: 0 | AD124: 0 | AE124: 0 | AF124: 0 | AG124: 0 | AH124: 0 | AI124: 0
X125: 0 | Y125: 0 | Z125: 0 | AA125: 0 | AB125: 0 | AC125: 0 | AD125: 0 | AE125: 0 | AF125: 0 | AG125: 0 | AH125: 0 | AI125: 0
X126: 0 | Y126: 0 | Z126: 0 | AA126: 0 | AB126: 0 | AC126: 0 | AD126: 0 | AE126: 0 | AF126: 0 | AG126: 0 | AH126: 0 | AI126: 0
X127: 0 | Y127: 0 | Z127: 0 | AA127: 0 | AB127: 0 | AC127: 0 | AD127: 0 | AE127: 0 | AF127: 0 | AG127: 0 | AH127: 0 | AI127: 0
X128: 0 | Y128: 0 | Z128: 0 | AA128: 0 | AB128: 0 | AC128: 0 | AD128: 0 | AE128: 0 | AF128: 0 | AG128: 0 | AH128: 0 | AI128: 0
X129: 0 | Y129: 0 | Z129: 0 | AA129: 0 | AB129: 0 | AC129: 0 | AD129: 0 | AE129: 0 | AF129: 0 | AG129: 0 | AH129: 0 | AI129: 0
X130: 0 | Y130: 0 | Z130: 0 | AA130: 0 | AB130: 0 | AC130: 0 | AD130: 0 | AE130: 0 | AF130: 0 | AG130: 0 | AH130: 0 | AI130: 0
X131: 0 | Y131: 0 | Z131: 0 | AA131: 0 | AB131: 0 | AC131: 0 | AD131: 0 | AE131: 0 | AF131: 0 | AG131: 0 | AH131: 0 | AI131: 0
X132: 0 | Y132: 0 | Z132: 0 | AA132: 0 | AB132: 0 | AC132: 0 | AD132: 0 | AE132: 0 | AF132: 0 | AG132: 0 | AH132: 0 | AI132: 0
X133: =NETWORKDAYS.INTL(V133,W133,7,$AM$4:$AM$4) -> 0 | Y133: =X133/5 -> 0 | Z133: =SUM(G133:K133) -> 0 | AA133: =Z133*Y133 -> 0 | AB133: =SUM((G133*6)+(H133*8)+(I133*12)+(J133*10)+(K133*15)) -> 0 | AC133: =AB133*Y133 -> 0 | AD133: =SUM(L133:P133) -> 0 | AE133: =SUM((L133*6)+(M133*8)+(N133*12)+(O133*10)+(P133*15)) -> 0 | AF133: =SUM(Q133:U133) -> 0 | AG133: =SUM((Q133*6)+(R133*8)+(S133*12)+(T133*10)+(U133*15)) -> 0 | AH133: =AA133+AD133-AF133 -> 0 | AI133: =IF(X133>81,"عدل التاريخ",AC133+AE133-AG133) -> 0
X134: 0 | Y134: 0 | Z134: 0 | AA134: 0 | AB134: 0 | AC134: 0 | AD134: 0 | AE134: 0 | AF134: 0 | AG134: 0 | AH134: 0 | AI134: 0
X135: 0 | Y135: 0 | Z135: 0 | AA135: 0 | AB135: 0 | AC135: 0 | AD135: 0 | AE135: 0 | AF135: 0 | AG135: 0 | AH135: 0 | AI135: 0
X136: 0 | Y136: 0 | Z136: 0 | AA136: 0 | AB136: 0 | AC136: 0 | AD136: 0 | AE136: 0 | AF136: 0 | AG136: 0 | AH136: 0 | AI136: 0
X137: 0 | Y137: 0 | Z137: 0 | AA137: 0 | AB137: 0 | AC137: 0 | AD137: 0 | AE137: 0 | AF137: 0 | AG137: 0 | AH137: 0 | AI137: 0
X138: 0 | Y138: 0 | Z138: 0 | AA138: 0 | AB138: 0 | AC138: 0 | AD138: 0 | AE138: 0 | AF138: 0 | AG138: 0 | AH138: 0 | AI138: 0
X139: 0 | Y139: 0 | Z139: 0 | AA139: 0 | AB139: 0 | AC139: 0 | AD139: 0 | AE139: 0 | AF139: 0 | AG139: 0 | AH139: 0 | AI139: 0
X140: 0 | Y140: 0 | Z140: 0 | AA140: 0 | AB140: 0 | AC140: 0 | AD140: 0 | AE140: 0 | AF140: 0 | AG140: 0 | AH140: 0 | AI140: 0
X141: 0 | Y141: 0 | Z141: 0 | AA141: 0 | AB141: 0 | AC141: 0 | AD141: 0 | AE141: 0 | AF141: 0 | AG141: 0 | AH141: 0 | AI141: 0
X142: 0 | Y142: 0 | Z142: 0 | AA142: 0 | AB142: 0 | AC142: 0 | AD142: 0 | AE142: 0 | AF142: 0 | AG142: 0 | AH142: 0 | AI142: 0
X143: 0 | Y143: 0 | Z143: 0 | AA143: 0 | AB143: 0 | AC143: 0 | AD143: 0 | AE143: 0 | AF143: 0 | AG143: 0 | AH143: 0 | AI143: 0
X144: 0 | Y144: 0 | Z144: 0 | AA144: 0 | AB144: 0 | AC144: 0 | AD144: 0 | AE144: 0 | AF144: 0 | AG144: 0 | AH144: 0 | AI144: 0
X145: 0 | Y145: 0 | Z145: 0 | AA145: 0 | AB145: 0 | AC145: 0 | AD145: 0 | AE145: 0 | AF145: 0 | AG145: 0 | AH145: 0 | AI145: 0
X146: 0 | Y146: 0 | Z146: 0 | AA146: 0 | AB146: 0 | AC146: 0 | AD146: 0 | AE146: 0 | AF146: 0 | AG146: 0 | AH146: 0 | AI146: 0
X147: 0 | Y147: 0 | Z147: 0 | AA147: 0 | AB147: 0 | AC147: 0 | AD147: 0 | AE147: 0 | AF147: 0 | AG147: 0 | AH147: 0 | AI147: 0
X148: 0 | Y148: 0 | Z148: 0 | AA148: 0 | AB148: 0 | AC148: 0 | AD148: 0 | AE148: 0 | AF148: 0 | AG148: 0 | AH148: 0 | AI148: 0
X149: 0 | Y149: 0 | Z149: 0 | AA149: 0 | AB149: 0 | AC149: 0 | AD149: 0 | AE149: 0 | AF149: 0 | AG149: 0 | AH149: 0 | AI149: 0
X150: 0 | Y150: 0 | Z150: 0 | AA150: 0 | AB150: 0 | AC150: 0 | AD150: 0 | AE150: 0 | AF150: 0 | AG150: 0 | AH150: 0 | AI150: 0
X151: 0 | Y151: 0 | Z151: 0 | AA151: 0 | AB151: 0 | AC151: 0 | AD151: 0 | AE151: 0 | AF151: 0 | AG151: 0 | AH151: 0 | AI151: 0
X152: 0 | Y152: 0 | Z152: 0 | AA152: 0 | AB152: 0 | AC152: 0 | AD152: 0 | AE152: 0 | AF152: 0 | AG152: 0 | AH152: 0 | AI152: 0
X153: 0 | Y153: 0 | Z153: 0 | AA153: 0 | AB153: 0 | AC153: 0 | AD153: 0 | AE153: 0 | AF153: 0 | AG153: 0 | AH153: 0 | AI153: 0
X154: 0 | Y154: 0 | Z154: 0 | AA154: 0 | AB154: 0 | AC154: 0 | AD154: 0 | AE154: 0 | AF154: 0 | AG154: 0 | AH154: 0 | AI154: 0
X155: 0 | Y155: 0 | Z155: 0 | AA155: 0 | AB155: 0 | AC155: 0 | AD155: 0 | AE155: 0 | AF155: 0 | AG155: 0 | AH155: 0 | AI155: 0
X156: 0 | Y156: 0 | Z156: 0 | AA156: 0 | AB156: 0 | AC156: 0 | AD156: 0 | AE156: 0 | AF156: 0 | AG156: 0 | AH156: 0 | AI156: 0
X157: 0 | Y157: 0 | Z157: 0 | AA157: 0 | AB157: 0 | AC157: 0 | AD157: 0 | AE157: 0 | AF157: 0 | AG157: 0 | AH157: 0 | AI157: 0
X158: 0 | Y158: 0 | Z158: 0 | AA158: 0 | AB158: 0 | AC158: 0 | AD158: 0 | AE158: 0 | AF158: 0 | AG158: 0 | AH158: 0 | AI158: 0
X159: 0 | Y159: 0 | Z159: 0 | AA159: 0 | AB159: 0 | AC159: 0 | AD159: 0 | AE159: 0 | AF159: 0 | AG159: 0 | AH159: 0 | AI159: 0
X160: 0 | Y160: 0 | Z160: 0 | AA160: 0 | AB160: 0 | AC160: 0 | AD160: 0 | AE160: 0 | AF160: 0 | AG160: 0 | AH160: 0 | AI160: 0
X161: 0 | Y161: 0 | Z161: 0 | AA161: 0 | AB161: 0 | AC161: 0 | AD161: 0 | AE161: 0 | AF161: 0 | AG161: 0 | AH161: 0 | AI161: 0
X162: 0 | Y162: 0 | Z162: 0 | AA162: 0 | AB162: 0 | AC162: 0 | AD162: 0 | AE162: 0 | AF162: 0 | AG162: 0 | AH162: 0 | AI162: 0
X163: 0 | Y163: 0 | Z163: 0 | AA163: 0 | AB163: 0 | AC163: 0 | AD163: 0 | AE163: 0 | AF163: 0 | AG163: 0 | AH163: 0 | AI163: 0
X164: 0 | Y164: 0 | Z164: 0 | AA164: 0 | AB164: 0 | AC164: 0 | AD164: 0 | AE164: 0 | AF164: 0 | AG164: 0 | AH164: 0 | AI164: 0
X165: 0 | Y165: 0 | Z165: 0 | AA165: 0 | AB165: 0 | AC165: 0 | AD165: 0 | AE165: 0 | AF165: 0 | AG165: 0 | AH165: 0 | AI165: 0
X166: 0 | Y166: 0 | Z166: 0 | AA166: 0 | AB166: 0 | AC166: 0 | AD166: 0 | AE166: 0 | AF166: 0 | AG166: 0 | AH166: 0 | AI166: 0
X167: 0 | Y167: 0 | Z167: 0 | AA167: 0 | AB167: 0 | AC167: 0 | AD167: 0 | AE167: 0 | AF167: 0 | AG167: 0 | AH167: 0 | AI167: 0
X168: 0 | Y168: 0 | Z168: 0 | AA168: 0 | AB168: 0 | AC168: 0 | AD168: 0 | AE168: 0 | AF168: 0 | AG168: 0 | AH168: 0 | AI168: 0
X169: 0 | Y169: 0 | Z169: 0 | AA169: 0 | AB169: 0 | AC169: 0 | AD169: 0 | AE169: 0 | AF169: 0 | AG169: 0 | AH169: 0 | AI169: 0
X170: 0 | Y170: 0 | Z170: 0 | AA170: 0 | AB170: 0 | AC170: 0 | AD170: 0 | AE170: 0 | AF170: 0 | AG170: 0 | AH170: 0 | AI170: 0
X171: 0 | Y171: 0 | Z171: 0 | AA171: 0 | AB171: 0 | AC171: 0 | AD171: 0 | AE171: 0 | AF171: 0 | AG171: 0 | AH171: 0 | AI171: 0
X172: 0 | Y172: 0 | Z172: 0 | AA172: 0 | AB172: 0 | AC172: 0 | AD172: 0 | AE172: 0 | AF172: 0 | AG172: 0 | AH172: 0 | AI172: 0
X173: 0 | Y173: 0 | Z173: 0 | AA173: 0 | AB173: 0 | AC173: 0 | AD173: 0 | AE173: 0 | AF173: 0 | AG173: 0 | AH173: 0 | AI173: 0
X174: 0 | Y174: 0 | Z174: 0 | AA174: 0 | AB174: 0 | AC174: 0 | AD174: 0 | AE174: 0 | AF174: 0 | AG174: 0 | AH174: 0 | AI174: 0
X175: 0 | Y175: 0 | Z175: 0 | AA175: 0 | AB175: 0 | AC175: 0 | AD175: 0 | AE175: 0 | AF175: 0 | AG175: 0 | AH175: 0 | AI175: 0
X176: 0 | Y176: 0 | Z176: 0 | AA176: 0 | AB176: 0 | AC176: 0 | AD176: 0 | AE176: 0 | AF176: 0 | AG176: 0 | AH176: 0 | AI176: 0
X177: 0 | Y177: 0 | Z177: 0 | AA177: 0 | AB177: 0 | AC177: 0 | AD177: 0 | AE177: 0 | AF177: 0 | AG177: 0 | AH177: 0 | AI177: 0
X178: 0 | Y178: 0 | Z178: 0 | AA178: 0 | AB178: 0 | AC178: 0 | AD178: 0 | AE178: 0 | AF178: 0 | AG178: 0 | AH178: 0 | AI178: 0
X179: 0 | Y179: 0 | Z179: 0 | AA179: 0 | AB179: 0 | AC179: 0 | AD179: 0 | AE179: 0 | AF179: 0 | AG179: 0 | AH179: 0 | AI179: 0
X180: 0 | Y180: 0 | Z180: 0 | AA180: 0 | AB180: 0 | AC180: 0 | AD180: 0 | AE180: 0 | AF180: 0 | AG180: 0 | AH180: 0 | AI180: 0
X181: 0 | Y181: 0 | Z181: 0 | AA181: 0 | AB181: 0 | AC181: 0 | AD181: 0 | AE181: 0 | AF181: 0 | AG181: 0 | AH181: 0 | AI181: 0
X182: 0 | Y182: 0 | Z182: 0 | AA182: 0 | AB182: 0 | AC182: 0 | AD182: 0 | AE182: 0 | AF182: 0 | AG182: 0 | AH182: 0 | AI182: 0
X183: 0 | Y183: 0 | Z183: 0 | AA183: 0 | AB183: 0 | AC183: 0 | AD183: 0 | AE183: 0 | AF183: 0 | AG183: 0 | AH183: 0 | AI183: 0
X184: 0 | Y184: 0 | Z184: 0 | AA184: 0 | AB184: 0 | AC184: 0 | AD184: 0 | AE184: 0 | AF184: 0 | AG184: 0 | AH184: 0 | AI184: 0
X185: 0 | Y185: 0 | Z185: 0 | AA185: 0 | AB185: 0 | AC185: 0 | AD185: 0 | AE185: 0 | AF185: 0 | AG185: 0 | AH185: 0 | AI185: 0
X186: 0 | Y186: 0 | Z186: 0 | AA186: 0 | AB186: 0 | AC186: 0 | AD186: 0 | AE186: 0 | AF186: 0 | AG186: 0 | AH186: 0 | AI186: 0
X187: 0 | Y187: 0 | Z187: 0 | AA187: 0 | AB187: 0 | AC187: 0 | AD187: 0 | AE187: 0 | AF187: 0 | AG187: 0 | AH187: 0 | AI187: 0
X188: 0 | Y188: 0 | Z188: 0 | AA188: 0 | AB188: 0 | AC188: 0 | AD188: 0 | AE188: 0 | AF188: 0 | AG188: 0 | AH188: 0 | AI188: 0
X189: 0 | Y189: 0 | Z189: 0 | AA189: 0 | AB189: 0 | AC189: 0 | AD189: 0 | AE189: 0 | AF189: 0 | AG189: 0 | AH189: 0 | AI189: 0
X190: 0 | Y190: 0 | Z190: 0 | AA190: 0 | AB190: 0 | AC190: 0 | AD190: 0 | AE190: 0 | AF190: 0 | AG190: 0 | AH190: 0 | AI190: 0
X191: 0 | Y191: 0 | Z191: 0 | AA191: 0 | AB191: 0 | AC191: 0 | AD191: 0 | AE191: 0 | AF191: 0 | AG191: 0 | AH191: 0 | AI191: 0
X192: 0 | Y192: 0 | Z192: 0 | AA192: 0 | AB192: 0 | AC192: 0 | AD192: 0 | AE192: 0 | AF192: 0 | AG192: 0 | AH192: 0 | AI192: 0
X193: 0 | Y193: 0 | Z193: 0 | AA193: 0 | AB193: 0 | AC193: 0 | AD193: 0 | AE193: 0 | AF193: 0 | AG193: 0 | AH193: 0 | AI193: 0
X194: 0 | Y194: 0 | Z194: 0 | AA194: 0 | AB194: 0 | AC194: 0 | AD194: 0 | AE194: 0 | AF194: 0 | AG194: 0 | AH194: 0 | AI194: 0
X195: 0 | Y195: 0 | Z195: 0 | AA195: 0 | AB195: 0 | AC195: 0 | AD195: 0 | AE195: 0 | AF195: 0 | AG195: 0 | AH195: 0 | AI195: 0
X196: 0 | Y196: 0 | Z196: 0 | AA196: 0 | AB196: 0 | AC196: 0 | AD196: 0 | AE196: 0 | AF196: 0 | AG196: 0 | AH196: 0 | AI196: 0
X197: =NETWORKDAYS.INTL(V197,W197,7,$AM$4:$AM$4) -> 0 | Y197: =X197/5 -> 0 | Z197: =SUM(G197:K197) -> 0 | AA197: =Z197*Y197 -> 0 | AB197: =SUM((G197*6)+(H197*8)+(I197*12)+(J197*10)+(K197*15)) -> 0 | AC197: =AB197*Y197 -> 0 | AD197: =SUM(L197:P197) -> 0 | AE197: =SUM((L197*6)+(M197*8)+(N197*12)+(O197*10)+(P197*15)) -> 0 | AF197: =SUM(Q197:U197) -> 0 | AG197: =SUM((Q197*6)+(R197*8)+(S197*12)+(T197*10)+(U197*15)) -> 0 | AH197: =AA197+AD197-AF197 -> 0 | AI197: =IF(X197>81,"عدل التاريخ",AC197+AE197-AG197) -> 0
X198: 0 | Y198: 0 | Z198: 0 | AA198: 0 | AB198: 0 | AC198: 0 | AD198: 0 | AE198: 0 | AF198: 0 | AG198: 0 | AH198: 0 | AI198: 0
X199: 0 | Y199: 0 | Z199: 0 | AA199: 0 | AB199: 0 | AC199: 0 | AD199: 0 | AE199: 0 | AF199: 0 | AG199: 0 | AH199: 0 | AI199: 0
X200: 0 | Y200: 0 | Z200: 0 | AA200: 0 | AB200: 0 | AC200: 0 | AD200: 0 | AE200: 0 | AF200: 0 | AG200: 0 | AH200: 0 | AI200: 0
... 344 more rows

Sheet f3
A2: بيانات عن المؤسسة
A3: اسم المراقبة | E3: عدد ايام الفصل | F3: عدد الاسابيع
A4: اسم المؤسسة | E4: 16.2 | F4: 14.2
A5: عدد مساعدي المعلمين اساسي
C6: =C5*15 -> 0
A7: عدد معلمي الفئات الخاصة اساسي
C8: =C7*15 -> 0
A9: عدد معلمي الفئات الخاصة الثانوي
C10: =C9*15 -> 0
A11: عدد معلم اول مرحلة التعليم الاساسي
C12: =C11*15 -> 0 | E12: =SUM(C8,C10,C12,C14,C28,C30,C32,C34,C36,C38,C40,C42,C44) -> 945 | F12: من السادس
A13: عدد معلم اول مرحلة التعليم الثانوي
C14: =C13*15 -> 0 | E14: =SUM(C6,C16,C18,C20,C22,C24,C26) -> 0 | F14: من الاول
A15: روضة | B15: عدد الفصول | XFD15: =SUM(C15:XFC15) -> 0
B16: عدد الحصص | C16: =C15*45 -> 0 | E16: =F4*E12 -> 13419
A17: الاول | B17: عدد الفصول
B18: عدد الحصص | C18: =C17*26 -> 0 | E18: =E14*E4 -> 0
A19: الثاني | B19: عدد الفصول
B20: عدد الحصص | C20: =C19*26 -> 0 | E20: =SUM(E16,E18) -> 13419 | F20: المجموع
A21: الثالث | B21: عدد الفصول
B22: عدد الحصص | C22: =C21*26 -> 0 | E22: =SUM(C17,C19,C21) -> 0 | F22: الصفوف الاولى
A23: الرابع | B23: عدد الفصول
B24: عدد الحصص | C24: =C23*29 -> 0
A25: الخامس | B25: عدد الفصول
B26: عدد الحصص | C26: =C25*33 -> 0
A27: السادس | B27: عدد الفصول
B28: عدد الحصص | C28: =C27*33 -> 0
A29: السابع | B29: عدد الفصول
B30: عدد الحصص | C30: =C29*34 -> 0
A31: الثامن | B31: عدد الفصول
B32: عدد الحصص | C32: =C31*34 -> 0
A33: التاسع | B33: عدد الفصول
B34: عدد الحصص | C34: =C33*34 -> 0
A35: الاول عام | B35: عدد الفصول | C35: 12
B36: عدد الحصص | C36: =C35*35 -> 420
A37: الثاني ادبي | B37: عدد الفصول | C37: 1
B38: عدد الحصص | C38: =C37*35 -> 35
A39: الثاني علمي | B39: عدد الفصول | C39: 7
B40: عدد الحصص | C40: =C39*35 -> 245
A41: الثالث ادبي | B41: عدد الفصول | C41: 1
B42: عدد الحصص | C42: =C41*35 -> 35
A43: الثالث علمي | B43: عدد الفصول | C43: 6
B44: عدد الحصص | C44: =C43*35 -> 210

Sheet f4
A2: وزارة التعليم
A3: مركز المعلومات والتوثيق
C4: مراقبة التعليم
C5: اسم المؤسسة
A6: المراقبة | B6: اسم المؤسسة | C6: الاسم | D6: رقم المنظومة المالية | E6: الرقم الوطني | F6: تاريخ البداية | G6: تاريخ النهاية | H6: الوظيفة | I6: عدد الحصص في الاسبوع | J6: مجموع حصص الفصل | K6: القيمة في الاسبوع | L6: حصص الاحتياط | M6: صافي الحصص | N6: صافي القيمة
A7: =#REF! ->  | B7: =#REF! ->  | C7: =#REF! ->  | D7: =#REF! ->  | E7: =#REF! ->  | F7: =#REF! ->  | G7: =#REF! ->  | H7: =#REF! ->  | I7: =#REF! ->  | J7: =#REF! ->  | K7: =#REF! ->  | L7: =#REF! ->  | M7: =#REF! ->  | N7: =#REF! -> 
A8: =#REF! ->  | B8: =#REF! ->  | C8: =#REF! ->  | D8: =#REF! ->  | E8: =#REF! ->  | F8: =#REF! ->  | G8: =#REF! ->  | H8: =#REF! ->  | I8: =#REF! ->  | J8: =#REF! ->  | K8: =#REF! ->  | L8: =#REF! ->  | M8: =#REF! ->  | N8: =#REF! -> 
A9: =#REF! ->  | B9: =#REF! ->  | C9: =#REF! ->  | D9: =#REF! ->  | E9: =#REF! ->  | F9: =#REF! ->  | G9: =#REF! ->  | H9: =#REF! ->  | I9: =#REF! ->  | J9: =#REF! ->  | K9: =#REF! ->  | L9: =#REF! ->  | M9: =#REF! ->  | N9: =#REF! -> 
A10: =#REF! ->  | B10: =#REF! ->  | C10: =#REF! ->  | D10: =#REF! ->  | E10: =#REF! ->  | F10: =#REF! ->  | G10: =#REF! ->  | H10: =#REF! ->  | I10: =#REF! ->  | J10: =#REF! ->  | K10: =#REF! ->  | L10: =#REF! ->  | M10: =#REF! ->  | N10: =#REF! -> 
A11: =#REF! ->  | B11: =#REF! ->  | C11: =#REF! ->  | D11: =#REF! ->  | E11: =#REF! ->  | F11: =#REF! ->  | G11: =#REF! ->  | H11: =#REF! ->  | I11: =#REF! ->  | J11: =#REF! ->  | K11: =#REF! ->  | L11: =#REF! ->  | M11: =#REF! ->  | N11: =#REF! -> 
A12: =#REF! ->  | B12: =#REF! ->  | C12: =#REF! ->  | D12: =#REF! ->  | E12: =#REF! ->  | F12: =#REF! ->  | G12: =#REF! ->  | H12: =#REF! ->  | I12: =#REF! ->  | J12: =#REF! ->  | K12: =#REF! ->  | L12: =#REF! ->  | M12: =#REF! ->  | N12: =#REF! -> 
A13: =#REF! ->  | B13: =#REF! ->  | C13: =#REF! ->  | D13: =#REF! ->  | E13: =#REF! ->  | F13: =#REF! ->  | G13: =#REF! ->  | H13: =#REF! ->  | I13: =#REF! ->  | J13: =#REF! ->  | K13: =#REF! ->  | L13: =#REF! ->  | M13: =#REF! ->  | N13: =#REF! -> 
A14: =#REF! ->  | B14: =#REF! ->  | C14: =#REF! ->  | D14: =#REF! ->  | E14: =#REF! ->  | F14: =#REF! ->  | G14: =#REF! ->  | H14: =#REF! ->  | I14: =#REF! ->  | J14: =#REF! ->  | K14: =#REF! ->  | L14: =#REF! ->  | M14: =#REF! ->  | N14: =#REF! -> 
A15: =#REF! ->  | B15: =#REF! ->  | C15: =#REF! ->  | D15: =#REF! ->  | E15: =#REF! ->  | F15: =#REF! ->  | G15: =#REF! ->  | H15: =#REF! ->  | I15: =#REF! ->  | J15: =#REF! ->  | K15: =#REF! ->  | L15: =#REF! ->  | M15: =#REF! ->  | N15: =#REF! -> 
A16: =#REF! ->  | B16: =#REF! ->  | C16: =#REF! ->  | D16: =#REF! ->  | E16: =#REF! ->  | F16: =#REF! ->  | G16: =#REF! ->  | H16: =#REF! ->  | I16: =#REF! ->  | J16: =#REF! ->  | K16: =#REF! ->  | L16: =#REF! ->  | M16: =#REF! ->  | N16: =#REF! -> 
A17: =#REF! ->  | B17: =#REF! ->  | C17: =#REF! ->  | D17: =#REF! ->  | E17: =#REF! ->  | F17: =#REF! ->  | G17: =#REF! ->  | H17: =#REF! ->  | I17: =#REF! ->  | J17: =#REF! ->  | K17: =#REF! ->  | L17: =#REF! ->  | M17: =#REF! ->  | N17: =#REF! -> 
A18: =#REF! ->  | B18: =#REF! ->  | C18: =#REF! ->  | D18: =#REF! ->  | E18: =#REF! ->  | F18: =#REF! ->  | G18: =#REF! ->  | H18: =#REF! ->  | I18: =#REF! ->  | J18: =#REF! ->  | K18: =#REF! ->  | L18: =#REF! ->  | M18: =#REF! ->  | N18: =#REF! -> 
A19: =#REF! ->  | B19: =#REF! ->  | C19: =#REF! ->  | D19: =#REF! ->  | E19: =#REF! ->  | F19: =#REF! ->  | G19: =#REF! ->  | H19: =#REF! ->  | I19: =#REF! ->  | J19: =#REF! ->  | K19: =#REF! ->  | L19: =#REF! ->  | M19: =#REF! ->  | N19: =#REF! -> 
A20: =#REF! ->  | B20: =#REF! ->  | C20: =#REF! ->  | D20: =#REF! ->  | E20: =#REF! ->  | F20: =#REF! ->  | G20: =#REF! ->  | H20: =#REF! ->  | I20: =#REF! ->  | J20: =#REF! ->  | K20: =#REF! ->  | L20: =#REF! ->  | M20: =#REF! ->  | N20: =#REF! -> 
A21: =#REF! ->  | B21: =#REF! ->  | C21: =#REF! ->  | D21: =#REF! ->  | E21: =#REF! ->  | F21: =#REF! ->  | G21: =#REF! ->  | H21: =#REF! ->  | I21: =#REF! ->  | J21: =#REF! ->  | K21: =#REF! ->  | L21: =#REF! ->  | M21: =#REF! ->  | N21: =#REF! -> 
A22: =#REF! ->  | B22: =#REF! ->  | C22: =#REF! ->  | D22: =#REF! ->  | E22: =#REF! ->  | F22: =#REF! ->  | G22: =#REF! ->  | H22: =#REF! ->  | I22: =#REF! ->  | J22: =#REF! ->  | K22: =#REF! ->  | L22: =#REF! ->  | M22: =#REF! ->  | N22: =#REF! -> 
A23: =#REF! ->  | B23: =#REF! ->  | C23: =#REF! ->  | D23: =#REF! ->  | E23: =#REF! ->  | F23: =#REF! ->  | G23: =#REF! ->  | H23: =#REF! ->  | I23: =#REF! ->  | J23: =#REF! ->  | K23: =#REF! ->  | L23: =#REF! ->  | M23: =#REF! ->  | N23: =#REF! -> 
A24: =#REF! ->  | B24: =#REF! ->  | C24: =#REF! ->  | D24: =#REF! ->  | E24: =#REF! ->  | F24: =#REF! ->  | G24: =#REF! ->  | H24: =#REF! ->  | I24: =#REF! ->  | J24: =#REF! ->  | K24: =#REF! ->  | L24: =#REF! ->  | M24: =#REF! ->  | N24: =#REF! -> 
A25: =#REF! ->  | B25: =#REF! ->  | C25: =#REF! ->  | D25: =#REF! ->  | E25: =#REF! ->  | F25: =#REF! ->  | G25: =#REF! ->  | H25: =#REF! ->  | I25: =#REF! ->  | J25: =#REF! ->  | K25: =#REF! ->  | L25: =#REF! ->  | M25: =#REF! ->  | N25: =#REF! -> 
A26: =#REF! ->  | B26: =#REF! ->  | C26: =#REF! ->  | D26: =#REF! ->  | E26: =#REF! ->  | F26: =#REF! ->  | G26: =#REF! ->  | H26: =#REF! ->  | I26: =#REF! ->  | J26: =#REF! ->  | K26: =#REF! ->  | L26: =#REF! ->  | M26: =#REF! ->  | N26: =#REF! -> 
A27: =#REF! ->  | B27: =#REF! ->  | C27: =#REF! ->  | D27: =#REF! ->  | E27: =#REF! ->  | F27: =#REF! ->  | G27: =#REF! ->  | H27: =#REF! ->  | I27: =#REF! ->  | J27: =#REF! ->  | K27: =#REF! ->  | L27: =#REF! ->  | M27: =#REF! ->  | N27: =#REF! -> 
A28: =#REF! ->  | B28: =#REF! ->  | C28: =#REF! ->  | D28: =#REF! ->  | E28: =#REF! ->  | F28: =#REF! ->  | G28: =#REF! ->  | H28: =#REF! ->  | I28: =#REF! ->  | J28: =#REF! ->  | K28: =#REF! ->  | L28: =#REF! ->  | M28: =#REF! ->  | N28: =#REF! -> 
A29: =#REF! ->  | B29: =#REF! ->  | C29: =#REF! ->  | D29: =#REF! ->  | E29: =#REF! ->  | F29: =#REF! ->  | G29: =#REF! ->  | H29: =#REF! ->  | I29: =#REF! ->  | J29: =#REF! ->  | K29: =#REF! ->  | L29: =#REF! ->  | M29: =#REF! ->  | N29: =#REF! -> 
A30: =#REF! ->  | B30: =#REF! ->  | C30: =#REF! ->  | D30: =#REF! ->  | E30: =#REF! ->  | F30: =#REF! ->  | G30: =#REF! ->  | H30: =#REF! ->  | I30: =#REF! ->  | J30: =#REF! ->  | K30: =#REF! ->  | L30: =#REF! ->  | M30: =#REF! ->  | N30: =#REF! -> 
A31: =#REF! ->  | B31: =#REF! ->  | C31: =#REF! ->  | D31: =#REF! ->  | E31: =#REF! ->  | F31: =#REF! ->  | G31: =#REF! ->  | H31: =#REF! ->  | I31: =#REF! ->  | J31: =#REF! ->  | K31: =#REF! ->  | L31: =#REF! ->  | M31: =#REF! ->  | N31: =#REF! -> 
A32: =#REF! ->  | B32: =#REF! ->  | C32: =#REF! ->  | D32: =#REF! ->  | E32: =#REF! ->  | F32: =#REF! ->  | G32: =#REF! ->  | H32: =#REF! ->  | I32: =#REF! ->  | J32: =#REF! ->  | K32: =#REF! ->  | L32: =#REF! ->  | M32: =#REF! ->  | N32: =#REF! -> 
A33: =#REF! ->  | B33: =#REF! ->  | C33: =#REF! ->  | D33: =#REF! ->  | E33: =#REF! ->  | F33: =#REF! ->  | G33: =#REF! ->  | H33: =#REF! ->  | I33: =#REF! ->  | J33: =#REF! ->  | K33: =#REF! ->  | L33: =#REF! ->  | M33: =#REF! ->  | N33: =#REF! -> 
A34: =#REF! ->  | B34: =#REF! ->  | C34: =#REF! ->  | D34: =#REF! ->  | E34: =#REF! ->  | F34: =#REF! ->  | G34: =#REF! ->  | H34: =#REF! ->  | I34: =#REF! ->  | J34: =#REF! ->  | K34: =#REF! ->  | L34: =#REF! ->  | M34: =#REF! ->  | N34: =#REF! -> 
A35: =#REF! ->  | B35: =#REF! ->  | C35: =#REF! ->  | D35: =#REF! ->  | E35: =#REF! ->  | F35: =#REF! ->  | G35: =#REF! ->  | H35: =#REF! ->  | I35: =#REF! ->  | J35: =#REF! ->  | K35: =#REF! ->  | L35: =#REF! ->  | M35: =#REF! ->  | N35: =#REF! -> 
A36: =#REF! ->  | B36: =#REF! ->  | C36: =#REF! ->  | D36: =#REF! ->  | E36: =#REF! ->  | F36: =#REF! ->  | G36: =#REF! ->  | H36: =#REF! ->  | I36: =#REF! ->  | J36: =#REF! ->  | K36: =#REF! ->  | L36: =#REF! ->  | M36: =#REF! ->  | N36: =#REF! -> 
A37: =#REF! ->  | B37: =#REF! ->  | C37: =#REF! ->  | D37: =#REF! ->  | E37: =#REF! ->  | F37: =#REF! ->  | G37: =#REF! ->  | H37: =#REF! ->  | I37: =#REF! ->  | J37: =#REF! ->  | K37: =#REF! ->  | L37: =#REF! ->  | M37: =#REF! ->  | N37: =#REF! -> 
A38: =#REF! ->  | B38: =#REF! ->  | C38: =#REF! ->  | D38: =#REF! ->  | E38: =#REF! ->  | F38: =#REF! ->  | G38: =#REF! ->  | H38: =#REF! ->  | I38: =#REF! ->  | J38: =#REF! ->  | K38: =#REF! ->  | L38: =#REF! ->  | M38: =#REF! ->  | N38: =#REF! -> 
A39: =#REF! ->  | B39: =#REF! ->  | C39: =#REF! ->  | D39: =#REF! ->  | E39: =#REF! ->  | F39: =#REF! ->  | G39: =#REF! ->  | H39: =#REF! ->  | I39: =#REF! ->  | J39: =#REF! ->  | K39: =#REF! ->  | L39: =#REF! ->  | M39: =#REF! ->  | N39: =#REF! -> 
A40: =#REF! ->  | B40: =#REF! ->  | C40: =#REF! ->  | D40: =#REF! ->  | E40: =#REF! ->  | F40: =#REF! ->  | G40: =#REF! ->  | H40: =#REF! ->  | I40: =#REF! ->  | J40: =#REF! ->  | K40: =#REF! ->  | L40: =#REF! ->  | M40: =#REF! ->  | N40: =#REF! -> 
A41: =#REF! ->  | B41: =#REF! ->  | C41: =#REF! ->  | D41: =#REF! ->  | E41: =#REF! ->  | F41: =#REF! ->  | G41: =#REF! ->  | H41: =#REF! ->  | I41: =#REF! ->  | J41: =#REF! ->  | K41: =#REF! ->  | L41: =#REF! ->  | M41: =#REF! ->  | N41: =#REF! -> 
A42: =#REF! ->  | B42: =#REF! ->  | C42: =#REF! ->  | D42: =#REF! ->  | E42: =#REF! ->  | F42: =#REF! ->  | G42: =#REF! ->  | H42: =#REF! ->  | I42: =#REF! ->  | J42: =#REF! ->  | K42: =#REF! ->  | L42: =#REF! ->  | M42: =#REF! ->  | N42: =#REF! -> 
A43: =#REF! ->  | B43: =#REF! ->  | C43: =#REF! ->  | D43: =#REF! ->  | E43: =#REF! ->  | F43: =#REF! ->  | G43: =#REF! ->  | H43: =#REF! ->  | I43: =#REF! ->  | J43: =#REF! ->  | K43: =#REF! ->  | L43: =#REF! ->  | M43: =#REF! ->  | N43: =#REF! -> 
A44: =#REF! ->  | B44: =#REF! ->  | C44: =#REF! ->  | D44: =#REF! ->  | E44: =#REF! ->  | F44: =#REF! ->  | G44: =#REF! ->  | H44: =#REF! ->  | I44: =#REF! ->  | J44: =#REF! ->  | K44: =#REF! ->  | L44: =#REF! ->  | M44: =#REF! ->  | N44: =#REF! -> 
A45: =#REF! ->  | B45: =#REF! ->  | C45: =#REF! ->  | D45: =#REF! ->  | E45: =#REF! ->  | F45: =#REF! ->  | G45: =#REF! ->  | H45: =#REF! ->  | I45: =#REF! ->  | J45: =#REF! ->  | K45: =#REF! ->  | L45: =#REF! ->  | M45: =#REF! ->  | N45: =#REF! -> 
A46: =#REF! ->  | B46: =#REF! ->  | C46: =#REF! ->  | D46: =#REF! ->  | E46: =#REF! ->  | F46: =#REF! ->  | G46: =#REF! ->  | H46: =#REF! ->  | I46: =#REF! ->  | J46: =#REF! ->  | K46: =#REF! ->  | L46: =#REF! ->  | M46: =#REF! ->  | N46: =#REF! -> 
A47: =#REF! ->  | B47: =#REF! ->  | C47: =#REF! ->  | D47: =#REF! ->  | E47: =#REF! ->  | F47: =#REF! ->  | G47: =#REF! ->  | H47: =#REF! ->  | I47: =#REF! ->  | J47: =#REF! ->  | K47: =#REF! ->  | L47: =#REF! ->  | M47: =#REF! ->  | N47: =#REF! -> 
A48: =#REF! ->  | B48: =#REF! ->  | C48: =#REF! ->  | D48: =#REF! ->  | E48: =#REF! ->  | F48: =#REF! ->  | G48: =#REF! ->  | H48: =#REF! ->  | I48: =#REF! ->  | J48: =#REF! ->  | K48: =#REF! ->  | L48: =#REF! ->  | M48: =#REF! ->  | N48: =#REF! -> 
A49: =#REF! ->  | B49: =#REF! ->  | C49: =#REF! ->  | D49: =#REF! ->  | E49: =#REF! ->  | F49: =#REF! ->  | G49: =#REF! ->  | H49: =#REF! ->  | I49: =#REF! ->  | J49: =#REF! ->  | K49: =#REF! ->  | L49: =#REF! ->  | M49: =#REF! ->  | N49: =#REF! -> 
A50: =#REF! ->  | B50: =#REF! ->  | C50: =#REF! ->  | D50: =#REF! ->  | E50: =#REF! ->  | F50: =#REF! ->  | G50: =#REF! ->  | H50: =#REF! ->  | I50: =#REF! ->  | J50: =#REF! ->  | K50: =#REF! ->  | L50: =#REF! ->  | M50: =#REF! ->  | N50: =#REF! -> 
A51: =#REF! ->  | B51: =#REF! ->  | C51: =#REF! ->  | D51: =#REF! ->  | E51: =#REF! ->  | F51: =#REF! ->  | G51: =#REF! ->  | H51: =#REF! ->  | I51: =#REF! ->  | J51: =#REF! ->  | K51: =#REF! ->  | L51: =#REF! ->  | M51: =#REF! ->  | N51: =#REF! -> 
A52: =#REF! ->  | B52: =#REF! ->  | C52: =#REF! ->  | D52: =#REF! ->  | E52: =#REF! ->  | F52: =#REF! ->  | G52: =#REF! ->  | H52: =#REF! ->  | I52: =#REF! ->  | J52: =#REF! ->  | K52: =#REF! ->  | L52: =#REF! ->  | M52: =#REF! ->  | N52: =#REF! -> 
A53: =#REF! ->  | B53: =#REF! ->  | C53: =#REF! ->  | D53: =#REF! ->  | E53: =#REF! ->  | F53: =#REF! ->  | G53: =#REF! ->  | H53: =#REF! ->  | I53: =#REF! ->  | J53: =#REF! ->  | K53: =#REF! ->  | L53: =#REF! ->  | M53: =#REF! ->  | N53: =#REF! -> 
A54: =#REF! ->  | B54: =#REF! ->  | C54: =#REF! ->  | D54: =#REF! ->  | E54: =#REF! ->  | F54: =#REF! ->  | G54: =#REF! ->  | H54: =#REF! ->  | I54: =#REF! ->  | J54: =#REF! ->  | K54: =#REF! ->  | L54: =#REF! ->  | M54: =#REF! ->  | N54: =#REF! -> 
A55: =#REF! ->  | B55: =#REF! ->  | C55: =#REF! ->  | D55: =#REF! ->  | E55: =#REF! ->  | F55: =#REF! ->  | G55: =#REF! ->  | H55: =#REF! ->  | I55: =#REF! ->  | J55: =#REF! ->  | K55: =#REF! ->  | L55: =#REF! ->  | M55: =#REF! ->  | N55: =#REF! -> 
A56: =#REF! ->  | B56: =#REF! ->  | C56: =#REF! ->  | D56: =#REF! ->  | E56: =#REF! ->  | F56: =#REF! ->  | G56: =#REF! ->  | H56: =#REF! ->  | I56: =#REF! ->  | J56: =#REF! ->  | K56: =#REF! ->  | L56: =#REF! ->  | M56: =#REF! ->  | N56: =#REF! -> 
A57: =#REF! ->  | B57: =#REF! ->  | C57: =#REF! ->  | D57: =#REF! ->  | E57: =#REF! ->  | F57: =#REF! ->  | G57: =#REF! ->  | H57: =#REF! ->  | I57: =#REF! ->  | J57: =#REF! ->  | K57: =#REF! ->  | L57: =#REF! ->  | M57: =#REF! ->  | N57: =#REF! -> 
A58: =#REF! ->  | B58: =#REF! ->  | C58: =#REF! ->  | D58: =#REF! ->  | E58: =#REF! ->  | F58: =#REF! ->  | G58: =#REF! ->  | H58: =#REF! ->  | I58: =#REF! ->  | J58: =#REF! ->  | K58: =#REF! ->  | L58: =#REF! ->  | M58: =#REF! ->  | N58: =#REF! -> 
A59: =#REF! ->  | B59: =#REF! ->  | C59: =#REF! ->  | D59: =#REF! ->  | E59: =#REF! ->  | F59: =#REF! ->  | G59: =#REF! ->  | H59: =#REF! ->  | I59: =#REF! ->  | J59: =#REF! ->  | K59: =#REF! ->  | L59: =#REF! ->  | M59: =#REF! ->  | N59: =#REF! -> 
A60: =#REF! ->  | B60: =#REF! ->  | C60: =#REF! ->  | D60: =#REF! ->  | E60: =#REF! ->  | F60: =#REF! ->  | G60: =#REF! ->  | H60: =#REF! ->  | I60: =#REF! ->  | J60: =#REF! ->  | K60: =#REF! ->  | L60: =#REF! ->  | M60: =#REF! ->  | N60: =#REF! -> 
A61: =#REF! ->  | B61: =#REF! ->  | C61: =#REF! ->  | D61: =#REF! ->  | E61: =#REF! ->  | F61: =#REF! ->  | G61: =#REF! ->  | H61: =#REF! ->  | I61: =#REF! ->  | J61: =#REF! ->  | K61: =#REF! ->  | L61: =#REF! ->  | M61: =#REF! ->  | N61: =#REF! -> 
A62: =#REF! ->  | B62: =#REF! ->  | C62: =#REF! ->  | D62: =#REF! ->  | E62: =#REF! ->  | F62: =#REF! ->  | G62: =#REF! ->  | H62: =#REF! ->  | I62: =#REF! ->  | J62: =#REF! ->  | K62: =#REF! ->  | L62: =#REF! ->  | M62: =#REF! ->  | N62: =#REF! -> 
A63: =#REF! ->  | B63: =#REF! ->  | C63: =#REF! ->  | D63: =#REF! ->  | E63: =#REF! ->  | F63: =#REF! ->  | G63: =#REF! ->  | H63: =#REF! ->  | I63: =#REF! ->  | J63: =#REF! ->  | K63: =#REF! ->  | L63: =#REF! ->  | M63: =#REF! ->  | N63: =#REF! -> 
A64: =#REF! ->  | B64: =#REF! ->  | C64: =#REF! ->  | D64: =#REF! ->  | E64: =#REF! ->  | F64: =#REF! ->  | G64: =#REF! ->  | H64: =#REF! ->  | I64: =#REF! ->  | J64: =#REF! ->  | K64: =#REF! ->  | L64: =#REF! ->  | M64: =#REF! ->  | N64: =#REF! -> 
A65: =#REF! ->  | B65: =#REF! ->  | C65: =#REF! ->  | D65: =#REF! ->  | E65: =#REF! ->  | F65: =#REF! ->  | G65: =#REF! ->  | H65: =#REF! ->  | I65: =#REF! ->  | J65: =#REF! ->  | K65: =#REF! ->  | L65: =#REF! ->  | M65: =#REF! ->  | N65: =#REF! -> 
A66: =#REF! ->  | B66: =#REF! ->  | C66: =#REF! ->  | D66: =#REF! ->  | E66: =#REF! ->  | F66: =#REF! ->  | G66: =#REF! ->  | H66: =#REF! ->  | I66: =#REF! ->  | J66: =#REF! ->  | K66: =#REF! ->  | L66: =#REF! ->  | M66: =#REF! ->  | N66: =#REF! -> 
A67: =#REF! ->  | B67: =#REF! ->  | C67: =#REF! ->  | D67: =#REF! ->  | E67: =#REF! ->  | F67: =#REF! ->  | G67: =#REF! ->  | H67: =#REF! ->  | I67: =#REF! ->  | J67: =#REF! ->  | K67: =#REF! ->  | L67: =#REF! ->  | M67: =#REF! ->  | N67: =#REF! -> 
A68: =#REF! ->  | B68: =#REF! ->  | C68: =#REF! ->  | D68: =#REF! ->  | E68: =#REF! ->  | F68: =#REF! ->  | G68: =#REF! ->  | H68: =#REF! ->  | I68: =#REF! ->  | J68: =#REF! ->  | K68: =#REF! ->  | L68: =#REF! ->  | M68: =#REF! ->  | N68: =#REF! -> 
A69: =#REF! ->  | B69: =#REF! ->  | C69: =#REF! ->  | D69: =#REF! ->  | E69: =#REF! ->  | F69: =#REF! ->  | G69: =#REF! ->  | H69: =#REF! ->  | I69: =#REF! ->  | J69: =#REF! ->  | K69: =#REF! ->  | L69: =#REF! ->  | M69: =#REF! ->  | N69: =#REF! -> 
A70: =#REF! ->  | B70: =#REF! ->  | C70: =#REF! ->  | D70: =#REF! ->  | E70: =#REF! ->  | F70: =#REF! ->  | G70: =#REF! ->  | H70: =#REF! ->  | I70: =#REF! ->  | J70: =#REF! ->  | K70: =#REF! ->  | L70: =#REF! ->  | M70: =#REF! ->  | N70: =#REF! -> 
A71: =#REF! ->  | B71: =#REF! ->  | C71: =#REF! ->  | D71: =#REF! ->  | E71: =#REF! ->  | F71: =#REF! ->  | G71: =#REF! ->  | H71: =#REF! ->  | I71: =#REF! ->  | J71: =#REF! ->  | K71: =#REF! ->  | L71: =#REF! ->  | M71: =#REF! ->  | N71: =#REF! -> 
A72: =#REF! ->  | B72: =#REF! ->  | C72: =#REF! ->  | D72: =#REF! ->  | E72: =#REF! ->  | F72: =#REF! ->  | G72: =#REF! ->  | H72: =#REF! ->  | I72: =#REF! ->  | J72: =#REF! ->  | K72: =#REF! ->  | L72: =#REF! ->  | M72: =#REF! ->  | N72: =#REF! -> 
A73: =#REF! ->  | B73: =#REF! ->  | C73: =#REF! ->  | D73: =#REF! ->  | E73: =#REF! ->  | F73: =#REF! ->  | G73: =#REF! ->  | H73: =#REF! ->  | I73: =#REF! ->  | J73: =#REF! ->  | K73: =#REF! ->  | L73: =#REF! ->  | M73: =#REF! ->  | N73: =#REF! -> 
A74: =#REF! ->  | B74: =#REF! ->  | C74: =#REF! ->  | D74: =#REF! ->  | E74: =#REF! ->  | F74: =#REF! ->  | G74: =#REF! ->  | H74: =#REF! ->  | I74: =#REF! ->  | J74: =#REF! ->  | K74: =#REF! ->  | L74: =#REF! ->  | M74: =#REF! ->  | N74: =#REF! -> 
A75: =#REF! ->  | B75: =#REF! ->  | C75: =#REF! ->  | D75: =#REF! ->  | E75: =#REF! ->  | F75: =#REF! ->  | G75: =#REF! ->  | H75: =#REF! ->  | I75: =#REF! ->  | J75: =#REF! ->  | K75: =#REF! ->  | L75: =#REF! ->  | M75: =#REF! ->  | N75: =#REF! -> 
A76: =#REF! ->  | B76: =#REF! ->  | C76: =#REF! ->  | D76: =#REF! ->  | E76: =#REF! ->  | F76: =#REF! ->  | G76: =#REF! ->  | H76: =#REF! ->  | I76: =#REF! ->  | J76: =#REF! ->  | K76: =#REF! ->  | L76: =#REF! ->  | M76: =#REF! ->  | N76: =#REF! -> 
A77: =#REF! ->  | B77: =#REF! ->  | C77: =#REF! ->  | D77: =#REF! ->  | E77: =#REF! ->  | F77: =#REF! ->  | G77: =#REF! ->  | H77: =#REF! ->  | I77: =#REF! ->  | J77: =#REF! ->  | K77: =#REF! ->  | L77: =#REF! ->  | M77: =#REF! ->  | N77: =#REF! -> 
A78: =#REF! ->  | B78: =#REF! ->  | C78: =#REF! ->  | D78: =#REF! ->  | E78: =#REF! ->  | F78: =#REF! ->  | G78: =#REF! ->  | H78: =#REF! ->  | I78: =#REF! ->  | J78: =#REF! ->  | K78: =#REF! ->  | L78: =#REF! ->  | M78: =#REF! ->  | N78: =#REF! -> 
A79: =#REF! ->  | B79: =#REF! ->  | C79: =#REF! ->  | D79: =#REF! ->  | E79: =#REF! ->  | F79: =#REF! ->  | G79: =#REF! ->  | H79: =#REF! ->  | I79: =#REF! ->  | J79: =#REF! ->  | K79: =#REF! ->  | L79: =#REF! ->  | M79: =#REF! ->  | N79: =#REF! -> 
A80: =#REF! ->  | B80: =#REF! ->  | C80: =#REF! ->  | D80: =#REF! ->  | E80: =#REF! ->  | F80: =#REF! ->  | G80: =#REF! ->  | H80: =#REF! ->  | I80: =#REF! ->  | J80: =#REF! ->  | K80: =#REF! ->  | L80: =#REF! ->  | M80: =#REF! ->  | N80: =#REF! -> 
A81: =#REF! ->  | B81: =#REF! ->  | C81: =#REF! ->  | D81: =#REF! ->  | E81: =#REF! ->  | F81: =#REF! ->  | G81: =#REF! ->  | H81: =#REF! ->  | I81: =#REF! ->  | J81: =#REF! ->  | K81: =#REF! ->  | L81: =#REF! ->  | M81: =#REF! ->  | N81: =#REF! -> 
A82: =#REF! ->  | B82: =#REF! ->  | C82: =#REF! ->  | D82: =#REF! ->  | E82: =#REF! ->  | F82: =#REF! ->  | G82: =#REF! ->  | H82: =#REF! ->  | I82: =#REF! ->  | J82: =#REF! ->  | K82: =#REF! ->  | L82: =#REF! ->  | M82: =#REF! ->  | N82: =#REF! -> 
A83: =#REF! ->  | B83: =#REF! ->  | C83: =#REF! ->  | D83: =#REF! ->  | E83: =#REF! ->  | F83: =#REF! ->  | G83: =#REF! ->  | H83: =#REF! ->  | I83: =#REF! ->  | J83: =#REF! ->  | K83: =#REF! ->  | L83: =#REF! ->  | M83: =#REF! ->  | N83: =#REF! -> 
A84: =#REF! ->  | B84: =#REF! ->  | C84: =#REF! ->  | D84: =#REF! ->  | E84: =#REF! ->  | F84: =#REF! ->  | G84: =#REF! ->  | H84: =#REF! ->  | I84: =#REF! ->  | J84: =#REF! ->  | K84: =#REF! ->  | L84: =#REF! ->  | M84: =#REF! ->  | N84: =#REF! -> 
A85: =#REF! ->  | B85: =#REF! ->  | C85: =#REF! ->  | D85: =#REF! ->  | E85: =#REF! ->  | F85: =#REF! ->  | G85: =#REF! ->  | H85: =#REF! ->  | I85: =#REF! ->  | J85: =#REF! ->  | K85: =#REF! ->  | L85: =#REF! ->  | M85: =#REF! ->  | N85: =#REF! -> 
A86: =#REF! ->  | B86: =#REF! ->  | C86: =#REF! ->  | D86: =#REF! ->  | E86: =#REF! ->  | F86: =#REF! ->  | G86: =#REF! ->  | H86: =#REF! ->  | I86: =#REF! ->  | J86: =#REF! ->  | K86: =#REF! ->  | L86: =#REF! ->  | M86: =#REF! ->  | N86: =#REF! -> 
A87: =#REF! ->  | B87: =#REF! ->  | C87: =#REF! ->  | D87: =#REF! ->  | E87: =#REF! ->  | F87: =#REF! ->  | G87: =#REF! ->  | H87: =#REF! ->  | I87: =#REF! ->  | J87: =#REF! ->  | K87: =#REF! ->  | L87: =#REF! ->  | M87: =#REF! ->  | N87: =#REF! -> 
A88: =#REF! ->  | B88: =#REF! ->  | C88: =#REF! ->  | D88: =#REF! ->  | E88: =#REF! ->  | F88: =#REF! ->  | G88: =#REF! ->  | H88: =#REF! ->  | I88: =#REF! ->  | J88: =#REF! ->  | K88: =#REF! ->  | L88: =#REF! ->  | M88: =#REF! ->  | N88: =#REF! -> 
A89: =#REF! ->  | B89: =#REF! ->  | C89: =#REF! ->  | D89: =#REF! ->  | E89: =#REF! ->  | F89: =#REF! ->  | G89: =#REF! ->  | H89: =#REF! ->  | I89: =#REF! ->  | J89: =#REF! ->  | K89: =#REF! ->  | L89: =#REF! ->  | M89: =#REF! ->  | N89: =#REF! -> 
A90: =#REF! ->  | B90: =#REF! ->  | C90: =#REF! ->  | D90: =#REF! ->  | E90: =#REF! ->  | F90: =#REF! ->  | G90: =#REF! ->  | H90: =#REF! ->  | I90: =#REF! ->  | J90: =#REF! ->  | K90: =#REF! ->  | L90: =#REF! ->  | M90: =#REF! ->  | N90: =#REF! -> 
A91: =#REF! ->  | B91: =#REF! ->  | C91: =#REF! ->  | D91: =#REF! ->  | E91: =#REF! ->  | F91: =#REF! ->  | G91: =#REF! ->  | H91: =#REF! ->  | I91: =#REF! ->  | J91: =#REF! ->  | K91: =#REF! ->  | L91: =#REF! ->  | M91: =#REF! ->  | N91: =#REF! -> 
A92: =#REF! ->  | B92: =#REF! ->  | C92: =#REF! ->  | D92: =#REF! ->  | E92: =#REF! ->  | F92: =#REF! ->  | G92: =#REF! ->  | H92: =#REF! ->  | I92: =#REF! ->  | J92: =#REF! ->  | K92: =#REF! ->  | L92: =#REF! ->  | M92: =#REF! ->  | N92: =#REF! -> 
A93: =#REF! ->  | B93: =#REF! ->  | C93: =#REF! ->  | D93: =#REF! ->  | E93: =#REF! ->  | F93: =#REF! ->  | G93: =#REF! ->  | H93: =#REF! ->  | I93: =#REF! ->  | J93: =#REF! ->  | K93: =#REF! ->  | L93: =#REF! ->  | M93: =#REF! ->  | N93: =#REF! -> 
A94: =#REF! ->  | B94: =#REF! ->  | C94: =#REF! ->  | D94: =#REF! ->  | E94: =#REF! ->  | F94: =#REF! ->  | G94: =#REF! ->  | H94: =#REF! ->  | I94: =#REF! ->  | J94: =#REF! ->  | K94: =#REF! ->  | L94: =#REF! ->  | M94: =#REF! ->  | N94: =#REF! -> 
A95: =#REF! ->  | B95: =#REF! ->  | C95: =#REF! ->  | D95: =#REF! ->  | E95: =#REF! ->  | F95: =#REF! ->  | G95: =#REF! ->  | H95: =#REF! ->  | I95: =#REF! ->  | J95: =#REF! ->  | K95: =#REF! ->  | L95: =#REF! ->  | M95: =#REF! ->  | N95: =#REF! -> 
A96: =#REF! ->  | B96: =#REF! ->  | C96: =#REF! ->  | D96: =#REF! ->  | E96: =#REF! ->  | F96: =#REF! ->  | G96: =#REF! ->  | H96: =#REF! ->  | I96: =#REF! ->  | J96: =#REF! ->  | K96: =#REF! ->  | L96: =#REF! ->  | M96: =#REF! ->  | N96: =#REF! -> 
A97: =#REF! ->  | B97: =#REF! ->  | C97: =#REF! ->  | D97: =#REF! ->  | E97: =#REF! ->  | F97: =#REF! ->  | G97: =#REF! ->  | H97: =#REF! ->  | I97: =#REF! ->  | J97: =#REF! ->  | K97: =#REF! ->  | L97: =#REF! ->  | M97: =#REF! ->  | N97: =#REF! -> 
A98: =#REF! ->  | B98: =#REF! ->  | C98: =#REF! ->  | D98: =#REF! ->  | E98: =#REF! ->  | F98: =#REF! ->  | G98: =#REF! ->  | H98: =#REF! ->  | I98: =#REF! ->  | J98: =#REF! ->  | K98: =#REF! ->  | L98: =#REF! ->  | M98: =#REF! ->  | N98: =#REF! -> 
A99: =#REF! ->  | B99: =#REF! ->  | C99: =#REF! ->  | D99: =#REF! ->  | E99: =#REF! ->  | F99: =#REF! ->  | G99: =#REF! ->  | H99: =#REF! ->  | I99: =#REF! ->  | J99: =#REF! ->  | K99: =#REF! ->  | L99: =#REF! ->  | M99: =#REF! ->  | N99: =#REF! -> 
A100: =#REF! ->  | B100: =#REF! ->  | C100: =#REF! ->  | D100: =#REF! ->  | E100: =#REF! ->  | F100: =#REF! ->  | G100: =#REF! ->  | H100: =#REF! ->  | I100: =#REF! ->  | J100: =#REF! ->  | K100: =#REF! ->  | L100: =#REF! ->  | M100: =#REF! ->  | N100: =#REF! -> 
A101: =#REF! ->  | B101: =#REF! ->  | C101: =#REF! ->  | D101: =#REF! ->  | E101: =#REF! ->  | F101: =#REF! ->  | G101: =#REF! ->  | H101: =#REF! ->  | I101: =#REF! ->  | J101: =#REF! ->  | K101: =#REF! ->  | L101: =#REF! ->  | M101: =#REF! ->  | N101: =#REF! -> 
A102: =#REF! ->  | B102: =#REF! ->  | C102: =#REF! ->  | D102: =#REF! ->  | E102: =#REF! ->  | F102: =#REF! ->  | G102: =#REF! ->  | H102: =#REF! ->  | I102: =#REF! ->  | J102: =#REF! ->  | K102: =#REF! ->  | L102: =#REF! ->  | M102: =#REF! ->  | N102: =#REF! -> 
D103: =#REF! ->  | E103: =#REF! ->  | F103: =#REF! -> 
D104: =#REF! ->  | E104: =#REF! ->  | F104: =#REF! -> 

Sheet f5
A2: وزارة التعليم
A3: مركز المعلومات والتوثيق | T3: 15
A4: مراقبة التعليم | D4: =#REF! -> 
A5: ت | B5: مكان العمل | C5: الاسم | D5: رقم المنظومة المالية | E5: الرقم الوطني | F5: الصفة | G5: القيمة
A6: 1 | B6: =#REF! ->  | C6: =#REF! ->  | D6: =#REF! ->  | E6: =#REF! ->  | F6: =#REF! ->  | G6: =#REF! -> 
A7: 2 | B7: =#REF! ->  | C7: =#REF! ->  | D7: =#REF! ->  | E7: =#REF! ->  | F7: =#REF! ->  | G7: =#REF! -> 
A8: 3 | B8: =#REF! ->  | C8: =#REF! ->  | D8: =#REF! ->  | E8: =#REF! ->  | F8: =#REF! ->  | G8: =#REF! -> 
A9: 4 | B9: =#REF! ->  | C9: =#REF! ->  | D9: =#REF! ->  | E9: =#REF! ->  | F9: =#REF! ->  | G9: =#REF! -> 
A10: 5 | B10: =#REF! ->  | C10: =#REF! ->  | D10: =#REF! ->  | E10: =#REF! ->  | F10: =#REF! ->  | G10: =#REF! -> 
A11: 6 | B11: =#REF! ->  | C11: =#REF! ->  | D11: =#REF! ->  | E11: =#REF! ->  | F11: =#REF! ->  | G11: =#REF! -> 
A12: 7 | B12: =#REF! ->  | C12: =#REF! ->  | D12: =#REF! ->  | E12: =#REF! ->  | F12: =#REF! ->  | G12: =#REF! -> 
A13: 8 | B13: =#REF! ->  | C13: =#REF! ->  | D13: =#REF! ->  | E13: =#REF! ->  | F13: =#REF! ->  | G13: =#REF! -> 
A14: 9 | B14: =#REF! ->  | C14: =#REF! ->  | D14: =#REF! ->  | E14: =#REF! ->  | F14: =#REF! ->  | G14: =#REF! -> 
A15: 10 | B15: =#REF! ->  | C15: =#REF! ->  | D15: =#REF! ->  | E15: =#REF! ->  | F15: =#REF! ->  | G15: =#REF! -> 
A16: 12 | B16: =#REF! ->  | C16: =#REF! ->  | D16: =#REF! ->  | E16: =#REF! ->  | F16: =#REF! ->  | G16: =#REF! -> 
A17: 13 | B17: =#REF! ->  | C17: =#REF! ->  | D17: =#REF! ->  | E17: =#REF! ->  | F17: =#REF! ->  | G17: =#REF! -> 
A18: 14 | B18: =#REF! ->  | C18: =#REF! ->  | D18: =#REF! ->  | E18: =#REF! ->  | F18: =#REF! ->  | G18: =#REF! -> 
A19: 15 | B19: =#REF! ->  | C19: =#REF! ->  | D19: =#REF! ->  | E19: =#REF! ->  | F19: =#REF! ->  | G19: =#REF! -> 
A20: 16 | B20: =#REF! ->  | C20: =#REF! ->  | D20: =#REF! ->  | E20: =#REF! ->  | F20: =#REF! ->  | G20: =#REF! -> 
A21: 17 | B21: =#REF! ->  | C21: =#REF! ->  | D21: =#REF! ->  | E21: =#REF! ->  | F21: =#REF! ->  | G21: =#REF! -> 
A22: 18 | B22: =#REF! ->  | C22: =#REF! ->  | D22: =#REF! ->  | E22: =#REF! ->  | F22: =#REF! ->  | G22: =#REF! -> 
A23: 19 | B23: =#REF! ->  | C23: =#REF! ->  | D23: =#REF! ->  | E23: =#REF! ->  | F23: =#REF! ->  | G23: =#REF! -> 
A24: 20 | B24: =#REF! ->  | C24: =#REF! ->  | D24: =#REF! ->  | E24: =#REF! ->  | F24: =#REF! ->  | G24: =#REF! -> 
A25: 21 | B25: =#REF! ->  | C25: =#REF! ->  | D25: =#REF! ->  | E25: =#REF! ->  | F25: =#REF! ->  | G25: =#REF! -> 
A26: 22 | B26: =#REF! ->  | C26: =#REF! ->  | D26: =#REF! ->  | E26: =#REF! ->  | F26: =#REF! ->  | G26: =#REF! -> 
A27: 23 | B27: =#REF! ->  | C27: =#REF! ->  | D27: =#REF! ->  | E27: =#REF! ->  | F27: =#REF! ->  | G27: =#REF! -> 
A28: 24 | B28: =#REF! ->  | C28: =#REF! ->  | D28: =#REF! ->  | E28: =#REF! ->  | F28: =#REF! ->  | G28: =#REF! -> 
A29: 25 | B29: =#REF! ->  | C29: =#REF! ->  | D29: =#REF! ->  | E29: =#REF! ->  | F29: =#REF! ->  | G29: =#REF! -> 
A30: 26 | B30: =#REF! ->  | C30: =#REF! ->  | D30: =#REF! ->  | E30: =#REF! ->  | F30: =#REF! ->  | G30: =#REF! -> 
A31: 27 | B31: =#REF! ->  | C31: =#REF! ->  | D31: =#REF! ->  | E31: =#REF! ->  | F31: =#REF! ->  | G31: =#REF! -> 
A32: 28 | B32: =#REF! ->  | C32: =#REF! ->  | D32: =#REF! ->  | E32: =#REF! ->  | F32: =#REF! ->  | G32: =#REF! -> 
A33: 29 | B33: =#REF! ->  | C33: =#REF! ->  | D33: =#REF! ->  | E33: =#REF! ->  | F33: =#REF! ->  | G33: =#REF! -> 
A34: 30 | B34: =#REF! ->  | C34: =#REF! ->  | D34: =#REF! ->  | E34: =#REF! ->  | F34: =#REF! ->  | G34: =#REF! -> 
A35: 31 | B35: =#REF! ->  | C35: =#REF! ->  | D35: =#REF! ->  | E35: =#REF! ->  | F35: =#REF! ->  | G35: =#REF! -> 
A36: 32 | B36: =#REF! ->  | C36: =#REF! ->  | D36: =#REF! ->  | E36: =#REF! ->  | F36: =#REF! ->  | G36: =#REF! -> 
A37: 33 | B37: =#REF! ->  | C37: =#REF! ->  | D37: =#REF! ->  | E37: =#REF! ->  | F37: =#REF! ->  | G37: =#REF! -> 
A38: 34 | B38: =#REF! ->  | C38: =#REF! ->  | D38: =#REF! ->  | E38: =#REF! ->  | F38: =#REF! ->  | G38: =#REF! -> 
A39: 35 | B39: =#REF! ->  | C39: =#REF! ->  | D39: =#REF! ->  | E39: =#REF! ->  | F39: =#REF! ->  | G39: =#REF! -> 
A40: 36 | B40: =#REF! ->  | C40: =#REF! ->  | D40: =#REF! ->  | E40: =#REF! ->  | F40: =#REF! ->  | G40: =#REF! -> 
A41: 37 | B41: =#REF! ->  | C41: =#REF! ->  | D41: =#REF! ->  | E41: =#REF! ->  | F41: =#REF! ->  | G41: =#REF! -> 
A42: 38 | B42: =#REF! ->  | C42: =#REF! ->  | D42: =#REF! ->  | E42: =#REF! ->  | F42: =#REF! ->  | G42: =#REF! -> 
A43: 39 | B43: =#REF! ->  | C43: =#REF! ->  | D43: =#REF! ->  | E43: =#REF! ->  | F43: =#REF! ->  | G43: =#REF! -> 
A44: 40 | B44: =#REF! ->  | C44: =#REF! ->  | D44: =#REF! ->  | E44: =#REF! ->  | F44: =#REF! ->  | G44: =#REF! -> 
A45: 41 | B45: =#REF! ->  | C45: =#REF! ->  | D45: =#REF! ->  | E45: =#REF! ->  | F45: =#REF! ->  | G45: =#REF! -> 
A46: 42 | B46: =#REF! ->  | C46: =#REF! ->  | D46: =#REF! ->  | E46: =#REF! ->  | F46: =#REF! ->  | G46: =#REF! -> 
A47: 43 | B47: =#REF! ->  | C47: =#REF! ->  | D47: =#REF! ->  | E47: =#REF! ->  | F47: =#REF! ->  | G47: =#REF! -> 
A48: 44 | B48: =#REF! ->  | C48: =#REF! ->  | D48: =#REF! ->  | E48: =#REF! ->  | F48: =#REF! ->  | G48: =#REF! -> 
A49: 45 | B49: =#REF! ->  | C49: =#REF! ->  | D49: =#REF! ->  | E49: =#REF! ->  | F49: =#REF! ->  | G49: =#REF! -> 
A50: 46 | B50: =#REF! ->  | C50: =#REF! ->  | D50: =#REF! ->  | E50: =#REF! ->  | F50: =#REF! ->  | G50: =#REF! -> 
A51: 47 | B51: =#REF! ->  | C51: =#REF! ->  | D51: =#REF! ->  | E51: =#REF! ->  | F51: =#REF! ->  | G51: =#REF! -> 
A52: 48 | B52: =#REF! ->  | C52: =#REF! ->  | D52: =#REF! ->  | E52: =#REF! ->  | F52: =#REF! ->  | G52: =#REF! -> 
A53: 49 | B53: =#REF! ->  | C53: =#REF! ->  | D53: =#REF! ->  | E53: =#REF! ->  | F53: =#REF! ->  | G53: =#REF! -> 
A54: 50 | B54: =#REF! ->  | C54: =#REF! ->  | D54: =#REF! ->  | E54: =#REF! ->  | F54: =#REF! ->  | G54: =#REF! -> 
A55: 51 | B55: =#REF! ->  | C55: =#REF! ->  | D55: =#REF! ->  | E55: =#REF! ->  | F55: =#REF! ->  | G55: =#REF! -> 
A56: 52 | B56: =#REF! ->  | C56: =#REF! ->  | D56: =#REF! ->  | E56: =#REF! ->  | F56: =#REF! ->  | G56: =#REF! -> 
A57: 53 | B57: =#REF! ->  | C57: =#REF! ->  | D57: =#REF! ->  | E57: =#REF! ->  | F57: =#REF! ->  | G57: =#REF! -> 
A58: 54 | B58: =#REF! ->  | C58: =#REF! ->  | D58: =#REF! ->  | E58: =#REF! ->  | F58: =#REF! ->  | G58: =#REF! -> 
A59: 55 | B59: =#REF! ->  | C59: =#REF! ->  | D59: =#REF! ->  | E59: =#REF! ->  | F59: =#REF! ->  | G59: =#REF! -> 
A60: 56 | B60: =#REF! ->  | C60: =#REF! ->  | D60: =#REF! ->  | E60: =#REF! ->  | F60: =#REF! ->  | G60: =#REF! -> 
A61: 57 | B61: =#REF! ->  | C61: =#REF! ->  | D61: =#REF! ->  | E61: =#REF! ->  | F61: =#REF! ->  | G61: =#REF! -> 
A62: 58 | B62: =#REF! ->  | C62: =#REF! ->  | D62: =#REF! ->  | E62: =#REF! ->  | F62: =#REF! ->  | G62: =#REF! -> 
A63: 59 | B63: =#REF! ->  | C63: =#REF! ->  | D63: =#REF! ->  | E63: =#REF! ->  | F63: =#REF! ->  | G63: =#REF! -> 
A64: 60 | B64: =#REF! ->  | C64: =#REF! ->  | D64: =#REF! ->  | E64: =#REF! ->  | F64: =#REF! ->  | G64: =#REF! -> 
A65: 61 | B65: =#REF! ->  | C65: =#REF! ->  | D65: =#REF! ->  | E65: =#REF! ->  | F65: =#REF! ->  | G65: =#REF! -> 
A66: 62 | B66: =#REF! ->  | C66: =#REF! ->  | D66: =#REF! ->  | E66: =#REF! ->  | F66: =#REF! ->  | G66: =#REF! -> 
A67: 63 | B67: =#REF! ->  | C67: =#REF! ->  | D67: =#REF! ->  | E67: =#REF! ->  | F67: =#REF! ->  | G67: =#REF! -> 
A68: 64 | B68: =#REF! ->  | C68: =#REF! ->  | D68: =#REF! ->  | E68: =#REF! ->  | F68: =#REF! ->  | G68: =#REF! -> 
A69: 65 | B69: =#REF! ->  | C69: =#REF! ->  | D69: =#REF! ->  | E69: =#REF! ->  | F69: =#REF! ->  | G69: =#REF! -> 
A70: 66 | B70: =#REF! ->  | C70: =#REF! ->  | D70: =#REF! ->  | E70: =#REF! ->  | F70: =#REF! ->  | G70: =#REF! -> 
A71: 67 | B71: =#REF! ->  | C71: =#REF! ->  | D71: =#REF! ->  | E71: =#REF! ->  | F71: =#REF! ->  | G71: =#REF! -> 
A72: 68 | B72: =#REF! ->  | C72: =#REF! ->  | D72: =#REF! ->  | E72: =#REF! ->  | F72: =#REF! ->  | G72: =#REF! -> 
A73: 69 | B73: =#REF! ->  | C73: =#REF! ->  | D73: =#REF! ->  | E73: =#REF! ->  | F73: =#REF! ->  | G73: =#REF! -> 
A74: 70 | B74: =#REF! ->  | C74: =#REF! ->  | D74: =#REF! ->  | E74: =#REF! ->  | F74: =#REF! ->  | G74: =#REF! -> 
A75: 71 | B75: =#REF! ->  | C75: =#REF! ->  | D75: =#REF! ->  | E75: =#REF! ->  | F75: =#REF! ->  | G75: =#REF! -> 
A76: 72 | B76: =#REF! ->  | C76: =#REF! ->  | D76: =#REF! ->  | E76: =#REF! ->  | F76: =#REF! ->  | G76: =#REF! -> 
A77: 73 | B77: =#REF! ->  | C77: =#REF! ->  | D77: =#REF! ->  | E77: =#REF! ->  | F77: =#REF! ->  | G77: =#REF! -> 
A78: 74 | B78: =#REF! ->  | C78: =#REF! ->  | D78: =#REF! ->  | E78: =#REF! ->  | F78: =#REF! ->  | G78: =#REF! -> 
A79: 75 | B79: =#REF! ->  | C79: =#REF! ->  | D79: =#REF! ->  | E79: =#REF! ->  | F79: =#REF! ->  | G79: =#REF! -> 
A80: 76 | B80: =#REF! ->  | C80: =#REF! ->  | D80: =#REF! ->  | E80: =#REF! ->  | F80: =#REF! ->  | G80: =#REF! -> 
A81: 77 | B81: =#REF! ->  | C81: =#REF! ->  | D81: =#REF! ->  | E81: =#REF! ->  | F81: =#REF! ->  | G81: =#REF! -> 
A82: 78 | B82: =#REF! ->  | C82: =#REF! ->  | D82: =#REF! ->  | E82: =#REF! ->  | F82: =#REF! ->  | G82: =#REF! -> 
A83: 79 | B83: =#REF! ->  | C83: =#REF! ->  | D83: =#REF! ->  | E83: =#REF! ->  | F83: =#REF! ->  | G83: =#REF! -> 
A84: 80 | B84: =#REF! ->  | C84: =#REF! ->  | D84: =#REF! ->  | E84: =#REF! ->  | F84: =#REF! ->  | G84: =#REF! -> 
A85: 81 | B85: =#REF! ->  | C85: =#REF! ->  | D85: =#REF! ->  | E85: =#REF! ->  | F85: =#REF! ->  | G85: =#REF! -> 
A86: 82 | B86: =#REF! ->  | C86: =#REF! ->  | D86: =#REF! ->  | E86: =#REF! ->  | F86: =#REF! ->  | G86: =#REF! -> 
A87: 83 | B87: =#REF! ->  | C87: =#REF! ->  | D87: =#REF! ->  | E87: =#REF! ->  | F87: =#REF! ->  | G87: =#REF! -> 
A88: 84 | B88: =#REF! ->  | C88: =#REF! ->  | D88: =#REF! ->  | E88: =#REF! ->  | F88: =#REF! ->  | G88: =#REF! -> 
A89: 85 | B89: =#REF! ->  | C89: =#REF! ->  | D89: =#REF! ->  | E89: =#REF! ->  | F89: =#REF! ->  | G89: =#REF! -> 
A90: 86 | B90: =#REF! ->  | C90: =#REF! ->  | D90: =#REF! ->  | E90: =#REF! ->  | F90: =#REF! ->  | G90: =#REF! -> 
A91: 87 | B91: =#REF! ->  | C91: =#REF! ->  | D91: =#REF! ->  | E91: =#REF! ->  | F91: =#REF! ->  | G91: =#REF! -> 
A92: 88 | B92: =#REF! ->  | C92: =#REF! ->  | D92: =#REF! ->  | E92: =#REF! ->  | F92: =#REF! ->  | G92: =#REF! -> 
A93: 89 | B93: =#REF! ->  | C93: =#REF! ->  | D93: =#REF! ->  | E93: =#REF! ->  | F93: =#REF! ->  | G93: =#REF! -> 
A94: 90 | B94: =#REF! ->  | C94: =#REF! ->  | D94: =#REF! ->  | E94: =#REF! ->  | F94: =#REF! ->  | G94: =#REF! -> 
A95: 91 | B95: =#REF! ->  | C95: =#REF! ->  | D95: =#REF! ->  | E95: =#REF! ->  | F95: =#REF! ->  | G95: =#REF! -> 
A96: 92 | B96: =#REF! ->  | C96: =#REF! ->  | D96: =#REF! ->  | E96: =#REF! ->  | F96: =#REF! ->  | G96: =#REF! -> 
A97: 93 | B97: =#REF! ->  | C97: =#REF! ->  | D97: =#REF! ->  | E97: =#REF! ->  | F97: =#REF! ->  | G97: =#REF! -> 
A98: 94 | B98: =#REF! ->  | C98: =#REF! ->  | D98: =#REF! ->  | E98: =#REF! ->  | F98: =#REF! ->  | G98: =#REF! -> 
A99: 95 | B99: =#REF! ->  | C99: =#REF! ->  | D99: =#REF! ->  | E99: =#REF! ->  | F99: =#REF! ->  | G99: =#REF! -> 
A100: 96 | B100: =#REF! ->  | C100: =#REF! ->  | D100: =#REF! ->  | E100: =#REF! ->  | F100: =#REF! ->  | G100: =#REF! -> 
A101: 97 | B101: =#REF! ->  | C101: =#REF! ->  | D101: =#REF! ->  | E101: =#REF! ->  | F101: =#REF! ->  | G101: =#REF! -> 
C2062: المجموع | G2062: =#REF! -> 

Sheet f6
B2: مراقبة التعليم | C2: =#REF! -> 
B3: اسم المؤسسة | C3: =#REF! -> 
A5: اسم المعلم
A6: الرقم المالي | B6: =IFERROR(VLOOKUP($B$5,#REF!,2,FALSE),0) -> 0
A7: الرقم الوطني | B7: =IFERROR(VLOOKUP($B$5,#REF!,3,FALSE),0) -> 0
A8: تاريخ البدية | B8: =IFERROR(VLOOKUP($B$5,#REF!,27,FALSE),0) -> 00:00:00
A9: تاريخ النهاية | B9: =IFERROR(VLOOKUP($B$5,#REF!,28,FALSE),0) -> 00:00:00
A10: عدد الحصص في الاسبوع | B10: =IFERROR(VLOOKUP($B$5,#REF!,31,FALSE),0) -> 0
A11: مجموع حصص الفصل | B11: =IFERROR(VLOOKUP($B$5,#REF!,32,FALSE),0) -> 0
A12: القيمة في الاسبوع | B12: =IFERROR(VLOOKUP($B$5,#REF!,33,FALSE),0) -> 0
A13: القيمة الاجمالية في الفصل | B13: =IFERROR(VLOOKUP($B$5,#REF!,34,FALSE),0) -> 0
A14: حصص الاحتياط | B14: =IFERROR(VLOOKUP($B$5,#REF!,35,FALSE),0) -> 0
A15: اجمالي حصص الغياب | B15: =IFERROR(VLOOKUP($B$5,#REF!,37,FALSE),0) -> 0
A16: صافي الحصص | B16: =IFERROR(VLOOKUP($B$5,#REF!,39,FALSE),0) -> 0
A17: صافي القيمة | B17: =IFERROR(VLOOKUP($B$5,#REF!,40,FALSE),0) -> 0
A18: توقيع المعلم/....................................................

Sheet magdi (hidden)
A1: ميلادي | B1: اليوم | C1: الشهر | D1: السنة
A2: هجري | B2: 1 | C2: 1 | D2: 2000
A3: اظهار | B3: 2 | C3: 2 | D3: 2001
A4: عدم الاظهار | B4: 3 | C4: 3 | D4: 2002
B5: 4 | C5: 4 | D5: 2003
B6: 5 | C6: 5 | D6: 2004
B7: 6 | C7: 6 | D7: 2005
B8: 7 | C8: 7 | D8: 2006
B9: 8 | C9: 8 | D9: 2007
B10: 9 | C10: 9 | D10: 2008
B11: 10 | C11: 10 | D11: 2009
B12: 11 | C12: 11 | D12: 2010
B13: 12 | C13: 12 | D13: 2011
B14: 13 | D14: 2012
B15: 14 | D15: 2013
B16: 15 | D16: 2014
B17: 16 | D17: 2015
B18: 17 | D18: 2016
B19: 18 | D19: 2017
B20: 19 | D20: 2018
B21: 20 | D21: 2019
B22: 21 | D22: 2020
B23: 22 | D23: 2021
B24: 23 | D24: 2022
B25: 24 | D25: 2023
B26: 25 | D26: 2024
B27: 26 | D27: 2025
B28: 27 | D28: 2026
B29: 28 | D29: 2027
B30: 29 | D30: 2028
B31: 30 | D31: 2029
B32: 31 | D32: 2030
D33: 2031
D34: 2032
D35: 2033
D36: 2034
D37: 2035
D38: 2036
D39: 2037
D40: 2038
D41: 2039
D42: 2040
